Workbook

Sheet COVER SHEET
B1: =YEAR(C29) -> 1900
A8: INVESTMENT SERVICES RULES FOR INVESTMENT SERVICES PROVIDERS
A10: PART B: STANDARD LICENCE CONDITIONS
A12: Appendix 2B
A14: 1 | B14: Document Type:
B15: ANNUAL FINANCIAL RETURN
J16: IFRS
J17: GAPSME
A18: 2 | B18: Name of Licence Holder
A20: 3 | B20: Licence Holder Code | C20: =IF(ISBLANK(C18),"",LOOKUP(C18,'LH Names & Codes'!A:A,'LH Names & Codes'!B:B)) -> 
A22: 4 | B22: LEI Code | C22: =IF(ISBLANK(C18),"",LOOKUP(C18,'LH Names & Codes'!A:A,'LH Names & Codes'!D:D)) -> 
A24: 5 | B24: Licence Number
A26: 6 | B26: Licence Type | C26: =IF(ISBLANK(C18),"",LOOKUP(C18,'LH Names & Codes'!A:A,'LH Names & Codes'!C:C)) -> 
A28: 7 | B28: For the period from:
B29: to:
A31: 8 | B31: Number of months covered by reporting period | C31: =IF(C29="","",(YEAR(C29)-YEAR(C28))*12+MONTH(C29)-MONTH(C28)+1) -> 
C32: =IF(C31>18,"Kindly ensure that the period entered is correct","") -> Kindly ensure that the period entered is correct
A34: 9 | B34: Currency in which accounts are reported
A36: 10 | B36: European Central Bank Exchange rate as at end of reporting period converting the reporting currency to EURO
A38: 11 | B38: Accounting Framework
A40: 12 | B40: Compliance Officer Name & Surname
A42: 13 | B42: MLRO Name & Surname
A44: 14 | B44: Kindly disclose the up-to-date firm’s website link(s) which are utilised to provide information to clients and potential clients about the firm’s products and services. Furthermore, kindly indicate the identified jurisdiction and target audience (e.g. specific category of clients) which the website(s) is/are intended for.
B48: Target Audience & Jurisdiction | C48: Link
A54: 15 | B54: Kindly disclose the up-to-date firm’s links to any social media pages. Social media includes but is not limited to: websites, microblogs (e.g. Twitter), social and professional networks (such as Facebook and LinkedIn), forums, image and video-sharing platforms (YouTube, Instagram, TikTok). Furthermore, kindly indicate the identified jurisdiction and target audience (e.g. specific category of clients) which the disclosed social media pages are intended for.
B59: Target Audience & Jurisdiction | C59: Social Media & Link
B66: Version 11/2025
B69: EUR
B70: GBP
B71: USD | C71: Category 1a
C72: Category 1 a & registered under Insurance Mediation Directive
C73: Category 1b
C74: Category 1b - PII Exemption
C75: Category 4
C76: AUDITED ANNUAL FINANCIAL RETURN
C77: ANNUAL FINANCIAL RETURN
C78: INTERIM FINANCIAL RETURN
B83: Validation Checks
D84: =IF(C36="",1,0) -> 1
B85: inputting of exchange rate converting reporting currency to euro | D85: =IF(C34="",1,0) -> 1
B86: Inputting of currency in which the accounts are reported | D86: =IF(C34="",1,0) -> 1
B87: Inputting of starting period covered by the Financial Return | D87: =IF(C28="",1,0) -> 1
B88: Inputting of end period covered by the Financial Return | D88: =IF(C29="",1,0) -> 1
B89: Inputting of LEI Code | D89: =IF(C22="",1,0) -> 1
B90: Inputting of the licence number of the licence holder | D90: =IF(C24="",1,0) -> 1
B91: Inputting of the licence holder code | D91: =IF(C24="",1,0) -> 1
B92: Inputting of name of licence holder | D92: =IF(C18="",1,0) -> 1
B93: Inputting of type of document | D93: =SUM(D84:D92) -> 9
B97: Level of application | C97: Individual
C98: Consolidated

Sheet CONTENTS
B2: CONTENTS
B5: Sheet 1 | D5: INPUT SHEET - MANDATORY | K5: =IF('COVER SHEET'!$C$39>0,"YES","NO") -> NO
B7: Sheet 2 | D7: INCOME STATEMENT | K7: =IF('COVER SHEET'!$C$39>0,"YES","NO") -> NO
A9: =IF(#REF! ="Annual Financial Return",10,0) ->  | B9: Sheet 3 | D9: BALANCE SHEET | K9: =IF('COVER SHEET'!$C$39>0,"YES","NO") -> NO
B11: Sheet 4 | D11: TOTAL OWN FUNDS CALCULATION | K11: =IF('COVER SHEET'!$C$39>0,"YES","NO") -> NO
B13: Sheet 5 | D13: FIXED OVERHEAD REQUIREMENT | K13: =IF('COVER SHEET'!$C$39>0,"YES","NO") -> NO
B15: Sheet 6 | D15: FINANCIAL RESOURCES REQUIREMENT | K15: =IF('COVER SHEET'!$C$39>0,"YES","NO") -> NO
B17: Sheet 7 | D17: REPRESENTATIONS - MANDATORY | K17: =IF('COVER SHEET'!$C$39>0,"YES","NO") -> NO
B19: Sheet 8 | D19: ANNUAL SUPERVISORY FEE - CALCULATOR (to be completed on an annual basis and submitted in original together with the AAFR)
B21: Non-Malta Funds | D21: NON-MALTA DOMICILED FUNDS MANAGED IN MALTA
B23: ESG Funds | D23: INFORMATION AS PER REGULATION (EU) 2019/2088 ("SFDR")
B25: Validation Sheet | D25: VALIDATION SHEET | K25: =IF('COVER SHEET'!$C$39>0,"YES","NO") -> NO
B30: N.B.
B31: a) Any of the above Sheet Titles which are marked in blue require manual input.

Sheet Sheet 1
B4: INPUT SHEET
B6: For the period from | C6: ='COVER SHEET'!C28 -> 00:00:00 | D6: to | G6: ='COVER SHEET'!C29 -> 00:00:00
C8: Amounts included on the credit should be -ve
C9: Amounts included on the debit should be +ve
D10: As per Trial Balance
B12: 1) Income
A13: 1.a | B13: a) Dealing Profit or (Loss) - Trading
A14: 1.b | B14: b) Dealing Profit or (Loss) - Long Term Investments
B15: c) Commissions received on transactions in :
A16: 1.c.i | B16: i) locally based schemes
A17: 1.c.ii | B17: ii) foreign based schemes
A18: 1.c.ii.1 | B18: 1) listed on a Recognised Investment Exchange
A19: 1.c.ii.2 | B19: 2) not listed on a Recognised Investment Exchange
A20: 1.c.iii | B20: i) unit linked products
A21: 1.c.iv | B21: ii) other commissions (equities, debt instruments etc...)
B22: d) Investment Management and Administration Fees
A23: 1.d.i | B23: i) Individual Portfolio Management - Retail clients
A24: 1.d.ii | B24: ii) Individual Portfolio Management - Professional clients
A25: 1.d.iii | B25: iii) Collective Investment Schemes - UCITS
A26: 1.d.iv | B26: iv) Collective Investment Schemes - AIFs
A27: 1.d.v | B27: v) Collective Investment Schemes - PIFs
A28: 1.vi | B28: vi) Collective Investment Schemes - NAIFs
A29: 1.vii | B29: vii) Collective Investment Schemes - NPIFs
A30: 1.viii | B30: viii) Collective Investment Schemes - Other
A31: 1.ix | B31: ix) Other (e.g. connected companies)
B32: e) Investment Advisory Fees
A33: 1.e.i | B33: i) Retail clients | F33: =IF(OR(D33<>0, D34<>0, D35<>0, D36<>0), "Kindly ensure that the values inputted are under the correct sub-heading","") -> 
A34: 1.e.ii | B34: ii) Professional clients
A35: 1.e.iii | B35: iii) Collective Investment Schemes
A36: 1.e.iv | B36: iv) Other (e.g. connected companies)
B37: f) Other ISA related revenue
A38: 1.f.i | B38: i) Reception and transmission of orders in relation to one or more financial instruments
A39: 1.f.ii | B39: ii) Execution of orders on behalf of clients
A40: 1.f.iii | B40: iii) Other
A41: 1.g | B41: g) Non-ISA related revenue
A42: 1.h | B42: h) Finance Income
A43: 1.i | B43: i) Fair value changes in Profit or Loss
E44: =SUM(D13:D43) -> 0
B45: 2) Expenditure
A46: 2.a | B46: a) Commissions that are directly related to the acqusition of gross revenue (derived from investment services activities), paid or payable to third parties; and/ or
A47: 2.a.i | B47: i) Fees, brokerage and other charges paid to clearing houses, exchanges and intermediate brokers for the purpse of executing, registering or clearing transactions
A48: 2.a.ii | B48: ii) Fees to tied agents | H48: =SUM(D46:D48) -> 0
A49: 2.b | B49: b) Other Commissions payable (not related to investment services activities)
B50: c) Exceptional Items of expenditure
A51: 2.c.i | B51: i) Allowed by MFSA
A52: 2.c.ii | B52: ii) Other
A53: 2.d | B53: d) Depreciation
A54: 2.e | B54: e) Directors Remuneration
A55: 2.f | B55: f) Salaries
A56: 2.g | B56: g) Staff bonuses
A57: 2.h | B57: h) Other appropriations of profits and other variable remuneration
A58: 2.i | B58: i) Shared commission and fees payable which are directly related to commission and fees receivable which are included within total revenue, and where the payment of the commission and fees payable is contingent upon the actual receipt of the commission and fees receivable
A62: 2.j | B62: j) Employees' and directors' shares in profits
A63: 2.k | B63: k) Investor Compensation Scheme
A64: 2.l | B64: l) Professional fees
A65: 2.m | B65: m) Audit fees
A66: 2.n | B66: n) Registration and Other fees
A67: 2.o | B67: o) Bank Charges
A68: 2.p | B68: p) Rental Expenses
A69: 2.q | B69: q) Travel Expenses
A70: 2.r | B70: r) Insurance Expenses
A71: 2.s | B71: s) Advertising Expense
A73: 2.t | B73: t) Interest charges in respect of borrowing made to finance the acquisition of readily realisable investments
A74: 2.u | B74: u) Interest paid to clients on clients' money
A75: 2.v | B75: v) Interest paid to counterparties
A76: 2.w | B76: w) Other interest payable
A77: 2.x | B77: x) Foreign exchange losses
A78: 2.y | B78: y) Non-recurring expenses from non-ordinary activities
A79: 2.z | B79: z) Other administrative expenses
A80: 2.aa | B80: aa) Taxation for the year
B82: Movement effected through the statement of changes in Equity
B83: a) Dividends
A84: 2.2.a.i | B84: i) Paid
A85: 2.2.a.ii | B85: ii) Proposed but not paid
B87: Statement of Other Comprehensive Income | F87: =IF(OR(D88<>0,D90<>0),"Qualify as P/L or OCI","") -> 
A88: 2.3.a | B88: a) Fair value movements on Intangible Assets | E88: P/L | H88: P/L | I88: OCI | L88: =IF(K89="Yes","Amount","") -> 
A89: 2.3.b | B89: b) Gain/Loss on revaulation of available for sale Financial Assets | F89: =IF(D89<>0,"Does this amount include exposures to central governments classified in the AFS category of EU - endorsed IAS 39?","") -> 
A90: 2.3.c | B90: c) Gain/Loss on revaluation of property | K90: Yes
A91: 2.3.d | B91: d) Other items of income and expense included in other comprehensive income | K91: No
A92: 2.3.e | B92: e) Tax income/expense relating to components of other comprehensive income
E93: =-E44-E91 -> 0
B94: 3) Assets
B95: a) Intangible assets | F95: Type
A96: 3.a.i | B96: i) Goodwill
A97: 3.a.ii | B97: ii) Other Intangible Assets | G97: =+D97+D96 -> 0 | I97: =+G97+G84 -> 0
A98: 3.b | B98: b) Property, Plant and Equipment
A99: 3.c | B99: c) Investment Property
A100: 3.d | B100: d) Defered Tax Asset | F100: Kindly Categorise amount in Table 4.1 (rows 20, 30 &40) | AJ100: CURRENCY | AK100: MARKET
A101: 3.e | B101: e) Inventories | I101: =+D101 -> 0 | AJ101: ALL | AK101: Albania
A102: 3.f | B102: f) Financial Instruments (Short Positions are to be included as trading book positions only.) | AE102: Total | AJ102: BGN | AK102: Austria
A103: 3.f.i | B103: i) Exposures to Central Governments or Central Banks | AJ103: CHF | AK103: Belgium
A104: 3.f.i.1 | AE104: =IF(D104>0,D104,0) -> 0 | AF104: =IF(D104<0,D104,0) -> 0 | AJ104: CZK | AK104: Bulgaria
A105: 3.f.i.2 | AE105: =IF(D105>0,D105,0) -> 0 | AF105: =IF(D105<0,D105,0) -> 0 | AJ105: DKK | AK105: Cyprus
A106: 3.f.i.3 | X106: 1 | AE106: 0 | AF106: 0 | AJ106: EUR | AK106: Czech Republic
A107: 3.f.i.4 | X107: 2 | AE107: 0 | AF107: 0 | AJ107: EGP | AK107: Denmark
A108: 3.f.i.5 | X108: 3 | AE108: 0 | AF108: 0 | AJ108: GBP | AK108: Estonia
A109: 3.f.i.6 | X109: 4 | AE109: 0 | AF109: 0 | AJ109: HUF | AK109: Finland
A110: 3.f.i.7 | X110: 5 | AE110: 0 | AF110: 0 | AJ110: ISK | AK110: France
A111: 3.f.i.8 | X111: 6 | AE111: 0 | AF111: 0 | AJ111: JPY | AK111: Germany
A112: 3.f.i.9 | X112: unrated | AE112: 0 | AF112: 0 | AJ112: LIE | AK112: Greece
A113: 3.f.i.10 | X113: 0 % | AE113: 0 | AF113: 0 | AJ113: LTL | AK113: Hungary
O114: 0 | AE114: 0 | AF114: 0
O115: 0 | AE115: 0 | AF115: 0
O116: 0 | AE116: 0 | AF116: 0
O117: 0 | AE117: 0 | AF117: 0
O118: 0 | AE118: 0 | AF118: 0
O119: 0 | AE119: 0 | AF119: 0
O120: 0 | AE120: 0 | AF120: 0
O121: 0 | AE121: 0 | AF121: 0
AE122: 0 | AF122: 0
O123: 0 | AE123: 0 | AF123: 0
O124: 0 | AE124: 0 | AF124: 0
O125: 0 | AE125: 0 | AF125: 0
O126: 0 | AE126: 0 | AF126: 0
O127: 0 | AE127: 0 | AF127: 0
AE128: 0 | AF128: 0
AE129: 0 | AF129: 0
AE130: 0 | AF130: 0
AE131: 0 | AF131: 0
AE132: 0 | AF132: 0
AE133: 0 | AF133: 0
AE134: 0 | AF134: 0
AE135: 0 | AF135: 0
AE136: 0 | AF136: 0
AE137: 0 | AF137: 0
AE138: 0 | AF138: 0
AE139: 0 | AF139: 0
AE140: 0 | AF140: 0
AE141: 0 | AF141: 0
AE142: 0 | AF142: 0
AE143: 0 | AF143: 0
AE144: 0 | AF144: 0
AE145: 0 | AF145: 0
AE146: 0 | AF146: 0
AE147: 0 | AF147: 0
AE148: 0 | AF148: 0
AE149: 0 | AF149: 0
AE150: 0 | AF150: 0
AE151: 0 | AF151: 0
AE152: 0 | AF152: 0
AE153: 0 | AF153: 0
AE154: 0 | AF154: 0
AE155: 0 | AF155: 0
AE156: 0 | AF156: 0
AE157: 0 | AF157: 0
AE158: 0 | AF158: 0
AE159: 0 | AF159: 0
AE160: 0 | AF160: 0
A161: 3.f.ii | B161: ii) Exposures to Regional Governments or Local Authorities | AE161: =IF(D161>0,D161,0) -> 0 | AF161: =IF(D161<0,D161,0) -> 0
A162: 3.f.ii.1 | B162: Treated as Central Government | AE162: 0 | AF162: 0
A163: 3.f.ii.1.1 | AE163: 0 | AF163: 0
A164: 3.f.ii.1.2 | AE164: 0 | AF164: 0
A165: 3.f.ii.1.3 | AE165: 0 | AF165: 0
A166: 3.f.ii.2 | B166: Treated as Institutions | AE166: 0 | AF166: 0
A167: 3.f.ii.2.1 | AE167: 0 | AF167: 0
A168: 3.f.ii.2.2 | AE168: 0 | AF168: 0
A169: 3.f.ii.2.3 | AE169: 0 | AF169: 0
A170: 3.f.iii | B170: iii) Exposures to Public Sector Entities | AE170: 0 | AF170: 0
A171: 3.f.iii.1 | AE171: 0 | AF171: 0
A172: 3.f.iii.2 | AE172: 0 | AF172: 0
A173: 3.f.iii.3 | AE173: 0 | AF173: 0
A174: 3.f.iii.4 | AE174: 0 | AF174: 0
A175: 3.f.iii.5 | AE175: 0 | AF175: 0
A176: 3.f.iii.6 | AE176: 0 | AF176: 0
A177: 3.f.iii.7 | AE177: 0 | AF177: 0
A178: 3.f.iii.8 | AE178: 0 | AF178: 0
A179: 3.f.iv | B179: iv) Exposures to Multilateral Development Banks | AE179: 0 | AF179: 0
A180: 3.f.iv.1 | AE180: 0 | AF180: 0
A181: 3.f.iv.2 | AE181: 0 | AF181: 0
A182: 3.f.iv.3 | AE182: 0 | AF182: 0
A183: 3.f.iv.4 | AE183: 0 | AF183: 0
A184: 3.f.iv.5 | AE184: 0 | AF184: 0
A185: 3.f.iv.6 | AE185: 0 | AF185: 0
A186: 3.f.iv.7 | AE186: 0 | AF186: 0
A187: 3.f.iv.8 | AE187: 0 | AF187: 0
A188: 3.f.v | B188: v) Exposures to International Organisations: | AE188: 0 | AF188: 0
A189: 3.f.v.1 | AE189: 0 | AF189: 0
A190: 3.f.v.2 | AE190: 0 | AF190: 0
A191: 3.f.v.3 | AE191: 0 | AF191: 0
A192: 3.f.v.4 | AE192: 0 | AF192: 0
A193: 3.f.v.5 | AE193: 0 | AF193: 0
A194: 3.f.v.6 | AE194: 0 | AF194: 0
A195: 3.f.vi | B195: vi) Exposures to Rated Institutions | AE195: 0 | AF195: 0
A196: 3.f.vi.1 | AE196: 0 | AF196: 0
A197: 3.f.vi.2 | AE197: 0 | AF197: 0
A198: 3.f.vi.3 | AE198: 0 | AF198: 0
A199: 3.f.vi.4 | AE199: 0 | AF199: 0
A200: 3.f.vi.5 | AE200: 0 | AF200: 0
A201: 3.f.vi.6 | AE201: 0 | AF201: 0
A202: 3.f.vi.7 | AE202: 0 | AF202: 0
A203: 3.f.vi.8 | AE203: 0 | AF203: 0
A204: 3.f.vi.9 | AE204: 0 | AF204: 0
A205: 3.f.vi.10 | AE205: 0 | AF205: 0
A206: 3.f.vii | B206: vii) Exposures to Unrated Institutions | AE206: 0 | AF206: 0
A207: 3.f.vii.1 | AE207: 0 | AF207: 0
A208: 3.f.vii.2 | AE208: 0 | AF208: 0
A209: 3.f.vii.3 | AE209: 0 | AF209: 0
A210: 3.f.vii.4 | AE210: 0 | AF210: 0
A211: 3.f.vii.5 | AE211: 0 | AF211: 0
A212: 3.f.vii.6 | AE212: 0 | AF212: 0
... 214 more rows

Sheet Sheet 2
J2: Initialled by the auditor for identification purposes only
B4: INCOME STATEMENT & ITEMS THROUGH STATEMENT OF CHANGES IN EQUITY
B6: For the period from | D6: ='COVER SHEET'!C28 -> 00:00:00 | E6: to | F6: ='COVER SHEET'!C29 -> 00:00:00
G8: =IF('COVER SHEET'!C34="","",'COVER SHEET'!C34) ->  | K8: =IF('COVER SHEET'!C34="","",'COVER SHEET'!C34) -> 
B9: Dealing Profit / (Loss)
A11: 1 | B11: Dealing Profit or (Loss) | L11: 70eb04cce2f2b382655bfe806b1c4870
A12: 1.a | B12: a) Dealing Profit or (Loss) - Trading | G12: =-'Sheet 1'!D13 -> 0 | L12: f5b78bad4d5708c48de167b147d8c5ce
A13: 1.b | B13: b) Dealing Profit or (Loss) - Long Term Financial Instruments | G13: =-'Sheet 1'!D14 -> 0 | H13: Total Dealing Profit or (Loss) | K13: =+G12+G13 -> 0 | L13: 80ab4b4c50ac2234a7dc0301a3645588
B16: Revenue
B17: ISA-related:
A19: 2 | B19: Commissions Received | L19: 1810fd1f8121f05349599465d8fb63b2
A20: 2.a | B20: a) Commissions received on transactions in : | L20: 5d8377565928de6bf4d2538b684db722
A21: 2.a.i | B21: i) locally based schemes | G21: =-'Sheet 1'!D16 -> 0 | L21: e0fbe15213e6f08814f03a1a421f6377
A22: 2.a.ii | B22: ii) foreign based schemes | G22: =-'Sheet 1'!D17 -> 0 | L22: 2747dde4dce9cd5125a29b294ff0c864
L23: a2fe75ad4a230daf7b9fe26c37ff89c5
A24: 2.a.ii.1 | B24: - listed on an EU Regulated Market or the Regulated Market of A developed financial centre | F24: =-'Sheet 1'!D18 -> 0 | L24: f453da589eeb3ac03ebea33a8cb7b9de
A25: 2.a.ii.2 | B25: - listed in other markets | F25: =-'Sheet 1'!D19 -> 0 | G25: =+F25+F24 -> 0 | L25: 149b2475860da315fd72539c1b110711
A26: 2.a.iii | B26: iii) unit linked products | G26: =-'Sheet 1'!D20 -> 0 | L26: 8c5cf7d498a5b9e5104c36c2805af5bd
A27: 2.b | B27: b) Other commission (equities, debt instruments etc.) | G27: =-'Sheet 1'!D21 -> 0 | H27: Total commissions | K27: =SUM(G21:G27) -> 0 | L27: 69d0c7c6a931cba9aab0c6055735c90b
A30: 3 | B30: Investment Management and Administration Fees | L30: ea0ddcace5db71450f141cfe85483382
A31: 3.a | B31: a) Individual Portfolio Management - Retail clients | G31: =-'Sheet 1'!D23 -> 0 | L31: ec3eb1637ee38a29a67a2d0f0c0f08f8
A32: 3.b | B32: b) Individual Portfolio Management - Professional clients | G32: =-'Sheet 1'!D24 -> 0 | L32: be7c77281b84a0b0d7f5dd1d93bec1e3
A33: 3.c | B33: c) Collective Investment Schemes | L33: 2c598cebdb544fd51a573a347d70a73a
A34: 3.c.i | B34: i) Collective Investment Schemes - UCITS | F34: =-'Sheet 1'!D25 -> 0 | L34: c2e4a5a645e32783a9241c834b8cda41
A35: 3.c.ii | B35: ii) Collective Investment Schemes - AIFs | F35: =-'Sheet 1'!D26 -> 0 | L35: c64893bc0597f9c493ee492a9cd94886
A36: 3.c.iii | B36: iii) Collective Investment Schemes - PIFs | F36: =-'Sheet 1'!D27 -> 0 | L36: 21b1d0b686bfb1ba232b8833e8192a64
A37: 3.c.iv | B37: iv) Collective Investment Schemes - NAIFs | F37: =-'Sheet 1'!D28 -> 0 | L37: 168fe018ad441ffc12c71533e5090cb0
A38: 3.c.v | B38: v) Collective Investment Schemes - NPIFs | F38: =-'Sheet 1'!D29 -> 0 | L38: b7d4c8d78e5e7431af9cb397ba82b253
A39: 3.c.vi | B39: vi) Collective Investment Schemes - Other | F39: =-'Sheet 1'!D30 -> 0 | G39: =SUM(F34:F39) -> 0 | L39: 6e7518469e90fa6478f3a832c036d599
A40: 3.d | B40: d) Other (e.g. Connected companies) | G40: =-'Sheet 1'!D31 -> 0 | H40: Total investment management fees | K40: =SUM(G31:G40) -> 0 | L40: 3c4580671faf8b67305584fb2d1a296d
A43: 4 | B43: Investment Advisory Fees | L43: be333c98d22cc6899095e5bf3e447961
A44: 4.a | B44: a) Retail clients | G44: =-'Sheet 1'!D33 -> 0 | L44: 746268bf468f614881768bec155e16e2
A45: 4.b | B45: b) Professional clients | G45: =-'Sheet 1'!D34 -> 0 | L45: 3026ef4bf55dc616da7f7dbef67359f1
A46: 4.c | B46: c) Collective Investment Schemes | G46: =-'Sheet 1'!D35 -> 0 | L46: 2c598cebdb544fd51a573a347d70a73a
A47: 4.d | B47: d) Other (e.g. Connected companies) | G47: =-'Sheet 1'!D36 -> 0 | H47: Total investment advisory fees | K47: =SUM(G44:G47) -> 0 | L47: 3c4580671faf8b67305584fb2d1a296d
A50: 5 | B50: Other ISA related revenue* | L50: ab0e2b86bacaf865b703ece4fb818f2d
A51: 5.a | B51: a) Reception and transmission of orders in relation to one or more financial instruments | G51: =-'Sheet 1'!D38 -> 0 | L51: 5ba995386ce0f2fcc6c2533c6f163aa1
A52: 5.b | B52: b) Execution of orders on behalf of clients | G52: =-'Sheet 1'!D39 -> 0 | L52: af18302d611ab09e6afd2ea72c860bbc
A53: 5.c | B53: c) Other* | G53: =-'Sheet 1'!D40 -> 0 | K53: =SUM(G51:G53) -> 0 | L53: d2a7bfff328742209143d754aa8ad748
A56: 6 | B56: Non-ISA related revenue | K56: =-'Sheet 1'!D41 -> 0 | L56: bb7adc1b1e2683f0560559bf8627ce77
A59: 7 | B59: Total Revenue | K59: =SUM(K13:K56) -> 0 | L59: 5d450fa13a2d6e9a8e9f0c83373d0e1f
A62: 8 | B62: * Details of 'Other ISA related revenue' and/or Any other details or comments: | L62: d434888b4b080ffa6f0e40e2535b0014
A63: 8.1 | L63: 31646cfbf3ef761f0011447a156dd183
A64: 8.2 | L64: 35b27e34e1220fd9c51a2a3e414ed10c
A65: 8.3 | L65: e38c801d409da8e2e99552b304658d35
A66: 8.4 | L66: f110379ab6f9d4cb8c0043052fc2c1cb
A67: 8.5 | L67: 799745c136523938ee5e88100cfda42c
B69: Operating Expenses | L69: 1bffeb9851c9ded090adeb5db728f46d
A71: 9 | B71: Commissions and fees | L71: 5d91fd51f6480f12a3e8034335d604fc
A72: 9.a | B72: a) Commissions that are directly related to the acqusition of gross revenue (derived from investment services activities), paid or payable to third parties; and/ or | G72: ='Sheet 1'!D46 -> 0 | L72: 85c488e339927028bf2cf0455e8458d0
A73: 9.a.i | B73: i) Fees, brokerage and other charges paid to clearing houses, exchanges and intermediate brokers for the purpse of executing, registering or clearing transactions | G73: ='Sheet 1'!D47 -> 0 | L73: 1a13b369f74dea2639a8c873002f9410
A74: 9.a.ii | B74: ii) Fees to tied agents | G74: ='Sheet 1'!D48 -> 0 | L74: 16e3ff6c3b3611618d2568ceb3f41e33
A75: 9.b | B75: b) Other Commissions payable (not related to investment services activities) | G75: ='Sheet 1'!D49 -> 0 | H75: Total Commissions and Fees | K75: =SUM(G72:G75) -> 0 | L75: 2d706b98495005304071ce625be1e1ca
A78: 10 | B78: Exceptional Items of expenditure | L78: 0a69109fa5857e7fc50a0d36e46b96d8
A79: 10.a | B79: a) Allowed by MFSA* | G79: ='Sheet 1'!D51 -> 0 | L79: c8b50bfe6bae90aa882dcf6959cea8f6
A80: 10.b | B80: b) Other | G80: ='Sheet 1'!D52 -> 0 | H80: Total Exceptional items | K80: =SUM(G79:G80) -> 0 | L80: 5c4b3f55b585d379d64e8ae34efd0ed4
A82: 11 | B82: Total Operating Expenses | K82: =K75+K80 -> 0 | L82: 099b6a048f6aa9d3fa73c0be848acc0f
A84: 12 | B84: Gross Profit | K84: =K59-K82 -> 0 | L84: 039621a2739d32ed60d1b89d94e2204c
A87: 13 | B87: Administrative Expenses | K87: =SUM('Sheet 1'!D53:D71)+SUM('Sheet 1'!D77+'Sheet 1'!D78+'Sheet 1'!D79)+IF('Sheet 1'!F88="P/L",'Sheet 1'!D88,"0")+IF('Sheet 1'!F90="P/L",'Sheet 1'!D90,"0") -> 0 | L87: a260805a16cfc79be7f86006fa680174
A89: 14 | B89: Operating Profit (loss) | K89: =K84-K87 -> 0 | L89: 044f91726692c391cc5dd09f4a0d789c
A91: 15 | B91: k) Finance Income | G91: =-'Sheet 1'!D42 -> 0 | L91: a0f0eab57e096e550bf6523e508a1231
A93: 16 | B93: l) Finance Cost | G93: =SUM('Sheet 1'!D73:D76) -> 0 | L93: f5cad1d40482d395b14732f7a3a6dedd
A95: 17 | B95: m) Fair Value through Profit or Loss | G95: =-'Sheet 1'!D43 -> 0 | L95: 64fa421ee9a8ef6ca6abc569a825e2c3
A97: 18 | B97: Profit (Loss) before tax | K97: =K89+G91-G93+G95 -> 0 | L97: f323490dd07d31e2c940f41bcff0074b
A99: 19 | B99: Tax (expense) income | K99: ='Sheet 1'!D80 -> 0 | L99: 60cd329b3e70a5dd37869a327a432c76
A101: 20 | B101: Profit (Loss) after tax | K101: =K97-K99 -> 0 | L101: f2b82a187e32db09b15130e5fa1aa8a0
A104: 21 | B104: Other Comprehensive Income | L104: 5c33cefed1fd5f895fa2c428d15c8c5a
M106: gain | N106: losses
A107: 21.n | B107: n) Fair value movements on Intangible Assets | G107: =+IF('Sheet 1'!F88="OCI",-'Sheet 1'!D88,"0") -> 0 | L107: 55b03b169c206455f90b853eaa8480be | M107: =IF(G107>0,G107,) -> 0 | N107: =IF(G107<0,G107,0) -> 0
M108: 0 | N108: 0
A109: 21.o | B109: o) Gain/Loss on revaluation of available for sale Financial Assets | G109: =-'Sheet 1'!D89 -> 0 | L109: 42e7791038ada030eb92336ddb49265d | M109: 0 | N109: 0
A110: 21.p | B110: p) Gain/Loss on revaluation of property | G110: =IF('Sheet 1'!F90="OCI",-'Sheet 1'!D90,0) -> 0 | L110: c33c83cf6dd2779f4021b27f8591ac79 | M110: 0 | N110: 0
A111: 21.q | B111: q) Other items of income and expense included in other comprehensive income | G111: =-'Sheet 1'!D91 -> 0 | L111: b42bad5380fd7a31d646e72194adf296 | M111: 0 | N111: 0
A112: 21.r | B112: r) Tax income/expense relating to components of other comprehensive income | G112: =-'Sheet 1'!D92 -> 0 | H112: Other Comprehensive Income | K112: =SUM(G107+G109+G110+G111+G112) -> 0 | L112: d909d27e3bba6e5343d8f93dd82ca0a3 | M112: 0 | N112: 0
M113: =SUM(M107:M112) -> 0 | N113: =SUM(N107:N112) -> 0
A114: 22 | B114: Total Comprehensive Income | K114: =K101+K112 -> 0 | L114: 70971a0c11e9cd7f8c7c61a75799b54f
J116: VALIDATION SHEET 2 | K116: =-SUM('Sheet 1'!D13:D91) -> 0

Sheet Sheet 3
I2: Initialled by the auditor for identification purposes only
B4: STATEMENT OF FINANCIAL POSITION
B6: As at: | C6: ='COVER SHEET'!C29 -> 00:00:00
B8: Assets
G9: =IF('COVER SHEET'!C34="","",'COVER SHEET'!C34) ->  | J9: =IF('COVER SHEET'!C34="","",'COVER SHEET'!C34) -> 
A10: 1 | B10: Non-current
A11: 1.a | B11: a) Intangible assets | G11: ='Sheet 1'!D96+'Sheet 1'!D97 -> 0 | K11: a07c611582cc29c1a8285d14bd192d34
A12: 1.b | B12: b) Property, Plant and Equipment | G12: ='Sheet 1'!D98 -> 0 | K12: e27e7730d73c6128da76c09bc7786ca7
A13: 1.c | B13: c) Investment Property | G13: ='Sheet 1'!D99 -> 0 | H13: Total Non-current assets | J13: =SUM(G11:G13) -> 0 | K13: 5a16fc4e05742781bd71ab57930803c2
A15: 2 | B15: Other non-current Assets | K15: e070c3a7a3d4bc91656dd558cebac7c9
A16: 2.a | B16: a) Inventories | G16: ='Sheet 1'!D101 -> 0 | K16: 3fd14274a4f3819d78e1acc8fe8131c1
A17: 2.b | B17: b) Deferred Tax Asset | G17: ='Sheet 1'!D100 -> 0 | K17: 682e13b71e68630b44b99eada4075568
A18: 2.c | B18: c) Financial Instruments - Long Positions | G18: ='Sheet 1'!AE302 -> 0 | K18: 4e3efe779abca9417ace6efaebad640e
A19: 2.d | B19: d) Trading Book Debtors | G19: =SUM('Sheet 1'!F303:F307) -> 0 | K19: 3c355260beeef1d5e686ab94b9c4e289
A20: 2.e | B20: e) Non-Trading Book Debtors | G20: =SUM('Sheet 1'!D310:D321)+'Sheet 1'!D327+'Sheet 1'!D323+SUM('Sheet 1'!G303:G307)+'Sheet 1'!D328 -> 0 | K20: 149c33832d6f2ab4cb211f70b15c86a4
A21: 2.f | B21: f) Amounts due from group companies** | G21: =+'Sheet 1'!D325 -> 0 | K21: de04510e7a267575b3d335da058b5ebc
A22: 2.g | B22: g) Amounts due from other connected persons* | G22: =+'Sheet 1'!D326 -> 0 | K22: f18ace734695fca57d57724bc5c8edb5
A23: 2.h | B23: h) Amounts receivable from government bodies | G23: ='Sheet 1'!D332+'Sheet 1'!D333 -> 0 | K23: 7f6ec52990fc9f633d72b1ab5a38e7f1
A24: 2.i | B24: i) Amounts receivable from financial institutions | G24: =SUM('Sheet 1'!D335:D336) -> 0 | K24: 1108ee6c07115aaec2b22b6cf6e292b3
A25: 2.j | B25: j) Bank and cash balances | G25: =+SUM('Sheet 1'!D339:D340) -> 0 | K25: fc9c33abdfb29f7aa63b93f7e5c7cc3d
A26: 2.k | B26: k) Other receivables | G26: ='Sheet 1'!D337+'Sheet 1'!D329+'Sheet 1'!D330 -> 0 | H26: Total Current Assets | J26: =SUM(G16:G26) -> 0 | K26: 4ff505b65ccdac9a23f1ee62887fad47
A28: 2.1 | B28: Total Assets | J28: =+J13+J26 -> 0 | K28: 7f0b6dfb01b6263df97d334ca9396b5d
B30: Equity | K30: d9df825203724a2f3412de3fc7a7a2be
A32: 3 | B32: Equity and Other Reserves | K32: 1df013641ae052a9038b8e8f039cae4e
A33: 3.a | B33: a) Called up ordinary share capital | G33: =-'Sheet 1'!D364 -> 0 | K33: 46be71c514c26d9fe0d04ce884083581
A34: 3.b | B34: b) Preference share capital | G34: =-SUM('Sheet 1'!D365:D371) -> 0 | K34: ed90bf16926280d94ad16080bf90f5cf
A35: 3.c | B35: c) Investor Compensation Scheme Reserve | G35: =-'Sheet 1'!D372 -> 0 | K35: 9188a7b1a599c34dbbd3cd2ff3cfefd7
A36: 3.d | B36: d) Share premium account | G36: =-SUM('Sheet 1'!D374:D378) -> 0 | K36: 7b872be6d54b6c2ad5716826bde686b5
A37: 3.e.i | B37: e) Revenue reserves i) as per the previous year's audited accounts | G37: =-'Sheet 1'!D379 -> 0 | K37: 2df3556616d7d268af18c7af4d95cffe
A38: 3.e.ii | B38: ii) retained profits/ (loss) for the year/ period | G38: ='Sheet 2'!K101 -> 0 | K38: 49ba8bb51cc65c3605e17ab75ca4d241
A39: 3.f.i | B39: f) Other Comprehensive Income i) as per the previous year's audited accounts | G39: =-'Sheet 1'!D380 -> 0 | K39: 359cc575e9840eaa176ca6e8cf5dbc7e
A40: 3.f.ii | B40: ii) other comprehensive income for the year/period | G40: ='Sheet 2'!K112 -> 0 | K40: f4c588c9a74d57ad4923d826412bd80a
A41: 3.g | B41: g) Other reserves | G41: =-'Sheet 1'!D381-'Sheet 1'!D84-'Sheet 1'!D85 -> 0 | H41: Total Equity and other reserves | J41: =SUM(G33:G41) -> 0 | K41: 8ee3cba95d19ab3929e8180dbc969e03
A43: 4 | B43: Minority Interest | J43: =-'Sheet 1'!D382 -> 0 | K43: 5b624ed25193cf593b24484f26fc9b8e
B45: Liabilities | K45: 0c90f5148f38b72e8cbfd53fddd1f4bd
A47: 5 | B47: Non-current | K47: 2e0dfe82e3c527af726a8b887b1594b2
A48: 5.a.i | B48: a) Loans: i) subordinated | F48: =-SUM('Sheet 1'!D351:D353) -> 0 | K48: 3229da177d516ce2a24045e9eb2da77c
A49: 5.a.ii | B49: ii) other | F49: =-'Sheet 1'!D354 -> 0 | G49: =+F48+F49 -> 0 | K49: 6e7264ebb28a04c3bc1e755a37631a9e
A50: 5.b | B50: b) Amounts due to group companies** | G50: =-'Sheet 1'!D356 -> 0 | K50: 2390a3c04ddd52beab6843a13a194c4b
A51: 5.c | B51: c) Amounts due to other connected persons* | G51: =-'Sheet 1'!D357 -> 0 | K51: 41565639db6273b49d5b1ff54b979e11
A52: 5.d | B52: d) Other Payables | G52: =-'Sheet 1'!D358 -> 0 | H52: Total Non-current liabilities | J52: =SUM(G49:G52) -> 0 | K52: 5fe5c48a3b428775f8c999ebca4e358d
A54: 6 | B54: Current | K54: 222a267cc5778206b253be35ee3ddab5
A55: 6.a | B55: a) Loans/overdrafts | G55: =-'Sheet 1'!D344 -> 0 | K55: b5b9813b023c22abe4a1f5dacfe3a1dc
A56: 6.b | B56: b) Taxation | G56: =-'Sheet 1'!D343 -> 0 | K56: d14beeeaeeea0490aa89f2e62411ba78
A57: 6.c | B57: c) Amounts due to group companies** | G57: =-'Sheet 1'!D346 -> 0 | K57: dfd41dcbeef79a16aa1cf96fc4fb7224
A58: 6.d | B58: d) Amounts due to other connected persons* | G58: =-'Sheet 1'!D347 -> 0 | K58: e5a09a7ad6104a0e60955fb7581523a9
A59: 6.e | B59: e) Financial instruments - Short Positions | G59: =ABS('Sheet 1'!AF302) -> 0 | K59: 76dfa26267c2b01daf3360b820038688
A60: 6.f | B60: f) Other payables | G60: =-'Sheet 1'!D349+(-'Sheet 1'!D348) -> 0 | K60: 750f281c3af6ca09a489aa1e817edef4
A61: 6.g | B61: g) Deferred Tax Liability | G61: =-'Sheet 1'!D359 -> 0 | K61: b50377b680170c9fbb6c2d4c630a3868
A62: 6.h | B62: h) Provisions for liabilities | G62: =-'Sheet 1'!D360 -> 0 | K62: 6320d9c8e19ca6167bf4e795fa097b9b
A63: 6.i | B63: i) Financial Liabilities | G63: =-'Sheet 1'!D361 -> 0 | H63: Total Current liabilities | J63: =SUM(G55:G63) -> 0 | K63: 1bd9cd98d4326ec093138d3bd3d8a716
A65: 7 | B65: Total Liabilities | J65: =+J52+J63 -> 0 | K65: 60e0dee4ec018cf28342638f875dfc59
A68: 7.1 | B68: Total Equity and Liabilities | J68: =J41+J65+J43 -> 0 | K68: 05500e8529ee3db000a80f749549e63f
A70: 8 | B70: * Details of 'Amounts due to/ from other connected persons' and/or **'Amounts due to/ from group Companies' and/or Any other details or comments: | K70: 645c2206d927b9c2bf351fb695b2bdd6
A71: 8.1 | K71: 2357c1146f3f301249781ee9cf54d7cc
A72: 8.2 | K72: 4a84cafbb4fa1130ac566953ef5b42f6
A73: 8.3 | K73: 5e2673f762507b21fd990326bc76c619
A74: 8.4 | K74: dd186c6869ef9397013b1ff687d4e71c

Sheet Sheet 4
B2: OWN FUNDS
B4: Rows | C4: Item | D4: Label | E4: Amount
B5: 010 | C5: 1 | D5: OWN FUNDS | E5: =SUM(E7+E61+E82) -> 0
B6: 015 | C6: 1.1 | D6: TIER 1 CAPITAL | E6: =SUM(E7+E61) -> 0
B7: 020 | C7: =C$6&".1" -> 1.1.1 | D7: COMMON EQUITY TIER 1 CAPITAL | E7: =(E8+E17+E22+E23+E24+E25+E26+E27+E28+E34+E38+E41+E42+E43+E47+E48+E49+E50+E51+E52+E53+E54+E55+E56+E57+E58+E59+E60) -> 0
B8: 030 | C8: =C$7&".1" -> 1.1.1.1 | D8: Capital instruments eligible as CET1 Capital | E8: =E9+E11+E12+E16-E10 -> 0
B9: 040 | C9: =C$8&".1" -> 1.1.1.1.1 | D9: Paid up capital instruments | E9: =ABS('Sheet 1'!D364) -> 0
B10: 050 | C10: 1.1.1.1.2* | D10: Memorandum item: Capital instruments not eligible
B11: 060 | C11: =C$8&".3" -> 1.1.1.1.3 | D11: Share premium | E11: =ABS('Sheet 1'!D375) -> 0
B12: 070 | C12: =C$8&".4" -> 1.1.1.1.4 | D12: (-) Own CET1 instruments | E12: =SUM(E13:E15) -> 0
B13: 080 | C13: =C$12&".1" -> 1.1.1.1.4.1 | D13: (-) Direct holdings of CET1 instruments | E13: =IF(AND('Sheet 1'!F404="CET 1",'Sheet 1'!G404="Direct"),-'Sheet 1'!H404,"0") -> 0
B14: 090 | C14: =C$12&".2" -> 1.1.1.1.4.2 | D14: (-) Indirect holdings of CET1 instruments | E14: =IF(AND('Sheet 1'!F404="CET 1",'Sheet 1'!G404="Indirect"),-'Sheet 1'!H404,"0") -> 0
B15: 091 | C15: =C$12&".3" -> 1.1.1.1.4.3 | D15: (-) Synthetic holdings of CET1 instruments | E15: =IF(AND('Sheet 1'!F404="CET 1",'Sheet 1'!G404="Synthetic"),-'Sheet 1'!H404,"0") -> 0
B16: 092 | C16: =C$8&".5" -> 1.1.1.1.5 | D16: (-) Actual or contingent obligations to purchase own CET1 instruments
B17: 130 | C17: =C$7&".2" -> 1.1.1.2 | D17: Retained earnings | E17: =SUM(E18+E19) -> 0
B18: 140 | C18: =C$17&".1" -> 1.1.1.2.1 | D18: Previous years retained earnings | E18: =-('Sheet 1'!D379) -> 0
B19: 150 | C19: =C$17&".2" -> 1.1.1.2.2 | D19: Profit or loss eligible | E19: =(E20+E21) -> 0
B20: 160 | C20: =C$19&".1" -> 1.1.1.2.2.1 | D20: Profit or loss attributable to owners of the parent | E20: =('Sheet 2'!K101)-SUM('Sheet 1'!D84:D85) -> 0
B21: 170 | C21: =C$19&".2" -> 1.1.1.2.2.2 | D21: (-) Part of interim or year-end profit not eligible | E21: =IF('Sheet 1'!D428<0,0,-('Sheet 1'!D428-'Sheet 1'!D429))+IF(OR(SUM('Sheet 1'!D84:D85)<=0,SUM(-'Sheet 1'!D379,'Sheet 1'!D428)<0),0,IF(SUM('Sheet 1'!D84:D85)>SUM('Sheet 3'!G37+'Sheet 1'!D429),SUM('Sheet 1'!D84:D85)-SUM('Sheet 3'!G37+'Sheet 1'!D429),0)) -> 0
B22: 180 | C22: =C$7&".3" -> 1.1.1.3 | D22: Accumulated other comprehensive income | E22: =SUM('Sheet 3'!G39:G40) -> 0
B23: 200 | C23: =C$7&".4" -> 1.1.1.4 | D23: Other reserves | E23: =-('Sheet 1'!D381) -> 0
B24: 210 | C24: =C$7&".5" -> 1.1.1.5 | D24: Funds for general banking risk
B25: 220 | C25: =C$7&".6" -> 1.1.1.6 | D25: Transitional adjustments due to grandfathered CET1 Capital instruments | E25: ='Sheet 4.2'!F12+'Sheet 4.2'!F9 -> 0
B26: 230 | C26: =C$7&".7" -> 1.1.1.7 | D26: Minority interest given recognition in CET1 capital | E26: =-'Sheet 1'!D382 -> 0
B27: 240 | C27: =C$7&".8" -> 1.1.1.8 | D27: Transitional adjustments due to additional minority interests | E27: ='Sheet 4.2'!F13 -> 0
B28: 250 | C28: =C$7&".9" -> 1.1.1.9 | D28: Adjustments to CET1 due to prudential filters | E28: =SUM(E29+E30+E31+E32+E33) -> 0
B29: 260 | C29: =C$28&".1" -> 1.1.1.9.1 | D29: (-) Increases in equity resulting from securitised assets
B30: 270 | C30: =C$28&".2" -> 1.1.1.9.2 | D30: Cash flow hedge reserve
B31: 280 | C31: =C$28&".3" -> 1.1.1.9.3 | D31: Cumulative gains and losses due to changes in own credit risk on fair valued liabilities
B32: 285 | C32: =C$28&".4" -> 1.1.1.9.4 | D32: Fair value gains and losses arising from the institution's own credit risk related to derivative liabilities
B33: 290 | C33: =C$28&".5" -> 1.1.1.9.5 | D33: (-) Value adjustments due to the requirements for prudent valuation
B34: 300 | C34: =C$7&".10" -> 1.1.1.10 | D34: (-) Goodwill | E34: =(E35+E36+E37) -> 0
B35: 310 | C35: =C$34&".1" -> 1.1.1.10.1 | D35: (-) Goodwill accounted for as intangible asset | E35: =IF(D35='Sheet 1'!F96,-'Sheet 1'!D96,0) -> 0
B36: 320 | C36: =C$34&".2" -> 1.1.1.10.2 | D36: (-) Goodwill included in the valuation of significant investments | E36: =IF(D36='Sheet 1'!F96,-'Sheet 1'!D96,0) -> 0
B37: 330 | C37: =C$34&".3" -> 1.1.1.10.3 | D37: Deferred tax liabilities associated to goodwill
B38: 340 | C38: =C$7&".11" -> 1.1.1.11 | D38: (-) Other intangible assets | E38: =SUM(E39+E40) -> 0
B39: 350 | C39: =C$38&".1" -> 1.1.1.11.1 | D39: (-) Other intangible assets gross amount | E39: =(-'Sheet 1'!D97) -> 0
B40: 360 | C40: =C$38&".2" -> 1.1.1.11.2 | D40: Deferred tax liabilities associated to other intangible assets
B41: 370 | C41: =C$7&".12" -> 1.1.1.12 | D41: (-) Deferred tax assets that rely on future profitability | E41: =-ABS('Sheet 4.1'!E8) -> 0
B42: 380 | C42: =C$7&".13" -> 1.1.1.13 | D42: (-) IRB shortfall of credit risk adjustments to expected losses
B43: 390 | C43: =C$7&".14" -> 1.1.1.14 | D43: (-)Defined benefit pension fund assets | E43: =SUM(E44+E45+E46) -> 0
B44: 400 | C44: =C$43&".1" -> 1.1.1.14.1 | D44: (-)Defined benefit pension fund assets gross amount
B45: 410 | C45: =C$43&".2" -> 1.1.1.14.2 | D45: Deferred tax liabilities associated to defined benefit pension fund assets
B46: 420 | C46: =C$43&".3" -> 1.1.1.14.3 | D46: Defined benefit pension fund assets which the institution has an unrestricted ability to use
B47: 430 | C47: =C$7&".15" -> 1.1.1.15 | D47: (-) Reciprocal cross holdings in CET1 Capital
B48: 440 | C48: =C$7&".16" -> 1.1.1.16 | D48: (-) Excess of deduction from AT1 items over AT1 Capital | E48: =-E79 -> 0
B49: 450 | C49: =C$7&".17" -> 1.1.1.17 | D49: (-) Qualifying holdings outside the financial sector which can alternatively be subject to a 1.250% risk weight
B50: 460 | C50: =C$7&".18" -> 1.1.1.18 | D50: (-) Securitisation positions which can alternatively be subject to a 1.250% risk weight
B51: 470 | C51: =C$7&".19" -> 1.1.1.19 | D51: (-) Free deliveries which can alternatively be subject to a 1.250% risk weight | E51: =-(SUM(IF('Sheet 1'!F314='Sheet 1'!J313,'Sheet 1'!D314,"0")+IF('Sheet 1'!I321='Sheet 1'!J313,'Sheet 1'!G321,"0"))) -> 0
B52: 471 | C52: =C$7&".20" -> 1.1.1.20 | D52: (-) Positions in a basket for which an institution cannot determine the risk weight under the IRB approach, and can alternatively be subject to a 1.250% risk weight
B53: 472 | C53: =C$7&".21" -> 1.1.1.21 | D53: (-) Equity exposures under an internal models approach which can alternatively be subject to a 1.250% risk weight
B54: 480 | C54: =C$7&".22" -> 1.1.1.22 | D54: (-) CET1 instruments of financial sector entites where the institution does not have a significant investment | E54: =IF('Sheet 1'!F412="CET 1",-'Sheet 1'!D412,"0") -> 0
B55: 490 | C55: =C$7&".23" -> 1.1.1.23 | D55: (-) Deductible deferred tax assets that rely on future profitability and arise from temporary differences | E55: =IF('Sheet 4.1'!E6>0,IF('Sheet 4.1'!E9>'Sheet 4.1'!E30,-('Sheet 4.1'!E9-'Sheet 4.1'!E30),"0"),0) -> 0
B56: 500 | C56: =C$7&".24" -> 1.1.1.24 | D56: (-) CET1 instruments of financial sector entities where the institution has a significant investment
B57: 510 | C57: =C$7&".25" -> 1.1.1.25 | D57: (-) Amount exceeding the 17.65% threshold | E57: =IF('Sheet 4.1'!E6>0,IF('Sheet 4.1'!E30>'Sheet 4.1'!E31,-('Sheet 4.1'!E30-'Sheet 4.1'!E31),0),0) -> 0
B58: 520 | C58: =C$7&".26" -> 1.1.1.26 | D58: Other transitional adjustments to CET1 Capital | E58: ='Sheet 4.2'!F18 -> 0
B59: 524 | C59: =C$7&".27" -> 1.1.1.27 | D59: Additional deductions of CET1 Capital due to Article 3 CRR
B60: 529 | C60: =C$7&".28" -> 1.1.1.28 | D60: CET1 capital elements or deductions - other
B61: 530 | C61: =C$6&".2" -> 1.1.2 | D61: ADDITIONAL TIER 1 CAPITAL | E61: =E62+E71+E72+E73+E74+E75+E76+E77+E78+E79+E80+E81 -> 0
B62: 540 | C62: =C$61&".1" -> 1.1.2.1 | D62: Capital instruments eligible as AT1 Capital | E62: =(E63+E65+E66+E70) -> 0
B63: 550 | C63: =C$62&".1" -> 1.1.2.1.1 | D63: Paid up capital instruments
B64: 560 | C64: 1.2.1.2* | D64: Memorandum item: Capital instruments not eligible
B65: 570 | C65: =C$62&".3" -> 1.1.2.1.3 | D65: Share premium | E65: =ABS('Sheet 1'!D376) -> 0
B66: 580 | C66: =C$62&".4" -> 1.1.2.1.4 | D66: (-) Own AT1 instruments | E66: =SUM(E67:E69) -> 0
B67: 590 | C67: =C$66&".1" -> 1.1.2.1.4.1 | D67: (-) Direct holdings of AT1 instruments | E67: =IF(AND('Sheet 1'!F404="AT 1",'Sheet 1'!G404="Direct"),-'Sheet 1'!H404,"0") -> 0
B68: 620 | C68: =C$66&".2" -> 1.1.2.1.4.2 | D68: (-) Indirect holdings of AT1 instruments | E68: =IF(AND('Sheet 1'!F404="AT 1",'Sheet 1'!G404="Indirect"),-'Sheet 1'!H404,"0") -> 0
B69: 621 | C69: =C$66&".3" -> 1.1.2.1.4.3 | D69: (-) Synthetic holdings of AT1 instruments | E69: =IF(AND('Sheet 1'!F404="AT 1",'Sheet 1'!G404="Synthetic"),-'Sheet 1'!H404,"0") -> 0
B70: 622 | C70: =C$62&".5" -> 1.1.2.1.5 | D70: (-) Actual or contingent obligations to purchase own AT1 instruments
B71: 660 | C71: =C$61&".2" -> 1.1.2.2 | D71: Transitional adjustments due to grandfathered AT1 Capital instruments | E71: ='Sheet 4.2'!G9+'Sheet 4.2'!G12 -> 0
B72: 670 | C72: =C$61&".3" -> 1.1.2.3 | D72: Instruments issued by subsidiaries that are given recognition in AT1 Capital
B73: 680 | C73: =C$61&".4" -> 1.1.2.4 | D73: Transitional adjustments due to additional recognition in AT1 Capital of instruments issued by subsidiaries | E73: ='Sheet 4.2'!G13 -> 0
B74: 690 | C74: =C$61&".5" -> 1.1.2.5 | D74: (-) Reciprocal cross holdings in AT1 Capital
B75: 700 | C75: =C$61&".6" -> 1.1.2.6 | D75: (-) AT1 instruments of financial sector entities where the institution does not have a significant investment | E75: =IF('Sheet 1'!F412="AT 1",-'Sheet 1'!D412,"0") -> 0
B76: 710 | C76: =C$61&".7" -> 1.1.2.7 | D76: (-) AT1 instruments of financial sector entities where the institution has a significant investment
B77: 720 | C77: =C$61&".8" -> 1.1.2.8 | D77: (-) Excess of deduction from T2 items over T2 Capital | E77: =-E101 -> 0
B78: 730 | C78: =C$61&".9" -> 1.1.2.9 | D78: Other transitional adjustments to AT1 Capital | E78: ='Sheet 4.2'!G18 -> 0
B79: 740 | C79: =C$61&".10" -> 1.1.2.10 | D79: Excess of deduction from AT1 items over AT1 Capital (deducted in CET1) | E79: =-MIN(E63+E65+E66+E70+E71+E72+E73+E74+E75+E76+E77+E78,0) -> 0
B80: 744 | C80: =C$61&".11" -> 1.1.2.11 | D80: Additional deductions of AT1 Capital due to Article 3 CRR
B81: 748 | C81: =C$61&".12" -> 1.1.2.12 | D81: AT1 capital elements or deductions - other
B82: 750 | C82: =C$5&".2" -> 1.2 | D82: TIER 2 CAPITAL | E82: =E83+E92+E93+E94+E95+E96+E97+E98+E99+E100+E101+E102+E103 -> 0
B83: 760 | C83: =C$82&".1" -> 1.2.1 | D83: Capital instruments and subordinated loans eligible as T2 Capital | E83: =E84+E87+E86+E91 -> 0
B84: 770 | C84: =C83&".1" -> 1.2.1.1 | D84: Paid up capital instruments and subordinated loans
B85: 780 | C85: 1.3.1.2* | D85: Memorandum item: Capital instruments and subordinated loans not eligible
B86: 790 | C86: =C$83&".3" -> 1.2.1.3 | D86: Share premium | E86: =ABS('Sheet 1'!D377) -> 0
B87: 800 | C87: =C$83&".4" -> 1.2.1.4 | D87: (-) Own T2 instruments | E87: =SUM(E88+E89+E90) -> 0
B88: 810 | C88: =C$87&".1" -> 1.2.1.4.1 | D88: (-) Direct holdings of T2 instruments | E88: =IF(AND('Sheet 1'!F404="T2",'Sheet 1'!G404="Direct"),-'Sheet 1'!H404,"0") -> 0
B89: 840 | C89: =C$87&".2" -> 1.2.1.4.2 | D89: (-) Indirect holdings of T2 instruments | E89: =IF(AND('Sheet 1'!F404="T2",'Sheet 1'!G404="Indirect"),-'Sheet 1'!H404,"0") -> 0
B90: 841 | C90: =C$87&".3" -> 1.2.1.4.3 | D90: (-) Synthetic holdings of T2 instruments | E90: =IF(AND('Sheet 1'!F404="T2",'Sheet 1'!G404="Synthetic"),-'Sheet 1'!H404,"0") -> 0
B91: 842 | C91: =C$83&".5" -> 1.2.1.5 | D91: (-) Actual or contingent obligations to purchase own T2 instruments
B92: 880 | C92: =C$82&".2" -> 1.2.2 | D92: Transitional adjustments due to grandfathered T2 Capital instruments and subordinated loans | E92: ='Sheet 4.2'!H12+'Sheet 4.2'!H9 -> 0
B93: 890 | C93: =C$82&".3" -> 1.2.3 | D93: Instruments issued by subsidiaries that are given recognition in T2 Capital
B94: 900 | C94: =C$82&".4" -> 1.2.4 | D94: Transitional adjustments due to additional recognition in T2 Capital of instruments issued by subsidiaries | E94: ='Sheet 4.2'!H13 -> 0
B95: 910 | C95: =C$82&".5" -> 1.2.5 | D95: IRB Excess of provisions over expected losses eligible
B96: 920 | C96: =C$82&".6" -> 1.2.6 | D96: SA General credit risk adjustments
B97: 930 | C97: =C$82&".7" -> 1.2.7 | D97: (-) Reciprocal cross holdings in T2 Capital
B98: 940 | C98: =C$82&".8" -> 1.2.8 | D98: (-) T2 instruments of financial sector entities where the institution does not have a significant investment | E98: =IF('Sheet 1'!F412="T2",-'Sheet 1'!D412,"0") -> 0
B99: 950 | C99: =C$82&".9" -> 1.2.9 | D99: (-) T2 instruments of financial sector entities where the institution has a significant investment
B100: 960 | C100: =C$82&".10" -> 1.2.10 | D100: Other transitional adjustments to T2 Capital | E100: ='Sheet 4.2'!H18 -> 0
B101: 970 | C101: =C$82&".11" -> 1.2.11 | D101: Excess of deduction from T2 items over T2 Capital (deducted in AT1) | E101: =-MIN(E84+E86+E92+E93+E94+E95+E96+E97+E98+E99+E100+E87+E91,0) -> 0
B102: 974 | C102: =C$82&".12" -> 1.2.12 | D102: Additional deductions of T2 Capital due to Article 3 CRR
B103: 978 | C103: =C$82&".13" -> 1.2.13 | D103: T2 capital elements or deductions - other

Sheet Sheet 4.1
B2: C 04.00 - MEMORANDUM ITEMS (CA4)
B4: Row | C4: ID | D4: Item | E4: Amount
B5: Deferred tax assets and liabilities
B6: 010 | C6: 1 | D6: Total deferred tax assets | E6: ='Sheet 1'!D100 -> 0
B7: 020 | C7: =C$6&".1" -> 1.1 | D7: Deferred tax assets that do not rely on future profitability
B8: 030 | C8: =C$6&".2" -> 1.2 | D8: Deferred tax assets that rely on future profitability and do not arise from temporary differences
B9: 040 | C9: =C$6&".3" -> 1.3 | D9: Deferred tax assets that rely on future profitability and arise from temporary differences
B10: 050 | C10: 2 | D10: Total deferred tax liabilities | E10: =-'Sheet 1'!D359 -> 0
B11: 060 | C11: =C$10&".1" -> 2.1 | D11: Deferred tax liabilities non deductible from deferred tax assets that rely on future profitability | E11: =SUM('Sheet 4'!E37+'Sheet 4'!E40+'Sheet 4'!E45) -> 0
B12: 070 | C12: =C$10&".2" -> 2.2 | D12: Deferred tax liabilities deductible from deferred tax assets that rely on future profitability | E12: =SUM(E13:E14) -> 0
B13: 080 | C13: =C$12&".1" -> 2.2.1 | D13: Deductible deferred tax liabilities associated with deferred tax assets that rely on future profitability and do not arise from temporary differences
B14: 090 | C14: =C$12&".2" -> 2.2.2 | D14: Deductible deferred tax liabilities associated with deferred tax assets that rely on future profitability and arise from temporary differences
B15: Credit risk adjustments and expected losses
B16: 100 | C16: 3 | D16: IRB excess (+) or shortfall (-) of credit risk adjustments, additional value adjustments and other own funds reductions to expected losses for non defaulted exposures | E16: =SUM(E17+E21) -> 0
B17: 110 | C17: =C$16&".1" -> 3.1 | D17: Total credit risk adjustments, additional value adjustments and other own funds reductions eligible for inclusion in the calculation of the expected loss amount | E17: =SUM(E18+E19+E20) -> 0
B18: 120 | C18: =C$17&".1" -> 3.1.1 | D18: General credit risk adjustments
B19: 130 | C19: =C$17&".2" -> 3.1.2 | D19: Specific credit risk adjustments
B20: 131 | C20: =C$17&".3" -> 3.1.3 | D20: Additional value adjustments and other own funds reductions
B21: 140 | C21: =C$16&".2" -> 3.2 | D21: Total expected losses eligible
B22: 145 | C22: 4 | D22: IRB excess (+) or shortfall (-) of specific credit risk adjustments to expected losses for defaulted exposures
B23: 150 | C23: =C$22&".1" -> 4.1 | D23: Specific credit risk adjustments and positions treated similarily
B24: 155 | C24: =C$22&".2" -> 4.2 | D24: Total expected losses eligible
B25: 160 | C25: 5 | D25: Risk weighted exposure amounts for calculating the cap to the excess of provision eligible as T2
B26: 170 | C26: 6 | D26: Total gross provisions eligible for inclusion in T2 capital
B27: 180 | C27: 7 | D27: Risk weighted exposure amounts for calculating the cap to the provision eligible as T2
B28: Thresholds for Common Equity Tier 1 deductions
B29: 190 | C29: 8 | D29: Threshold non deductible of holdings in relevant entities where an institution does not have a significant investment | E29: =10%*('Sheet 4'!E8+'Sheet 4'!E17+'Sheet 4'!E22+'Sheet 4'!E24+'Sheet 4'!E26+'Sheet 4'!E28-'Sheet 4'!E34-'Sheet 4'!E38-'Sheet 4'!E41-'Sheet 4'!E42-'Sheet 4'!E43-'Sheet 4'!E47-'Sheet 4'!E49-'Sheet 4'!E50-'Sheet 4'!E51) -> 0
B30: 200 | C30: 9 | D30: 10% CET1 threshold | E30: =10%*('Sheet 4'!E8+'Sheet 4'!E17+'Sheet 4'!E22+'Sheet 4'!E23+'Sheet 4'!E24+'Sheet 4'!E25+'Sheet 4'!E26+'Sheet 4'!E28+'Sheet 4'!E34+'Sheet 4'!E38+'Sheet 4'!E41+'Sheet 4'!E42+'Sheet 4'!E43+'Sheet 4'!E47+'Sheet 4'!E50+'Sheet 4'!E51+'Sheet 4'!E52+'Sheet 4'!E53+'Sheet 4'!E54) -> 0
B31: 210 | C31: 10 | D31: 17.65% CET1 threshold | E31: =17.65%*('Sheet 4'!E8+'Sheet 4'!E17+'Sheet 4'!E22+'Sheet 4'!E23+'Sheet 4'!E24+'Sheet 4'!E25+'Sheet 4'!E26+'Sheet 4'!E27+'Sheet 4'!E28+'Sheet 4'!E34+'Sheet 4'!E38+'Sheet 4'!E41+'Sheet 4'!E42+'Sheet 4'!E43+'Sheet 4'!E47+'Sheet 4'!E50+'Sheet 4'!E51+'Sheet 4'!E52+'Sheet 4'!E53+'Sheet 4'!E54+'Sheet 4'!E48+'Sheet 4'!E49+'Sheet 4'!E56-SUM(E8:E9)) -> 0
B32: 220 | C32: 11 | D32: Eligible capital for the purposes of qualifying holdings outside the financial sector and large exposures | E32: =SUM('Sheet 4'!E7+'Sheet 4'!E61+IF('Sheet 4'!E82>1/3*('Sheet 4'!E7+'Sheet 4'!E61),1/3*('Sheet 4'!E7+'Sheet 4'!E61),'Sheet 4'!E82)) -> 0
B33: Investments in the capital of financial sector entities where the institution does not have a significant investment
B34: 230 | C34: 12 | D34: Holdings of CET1 capital of financial sector entities where the institution does not have a significant investment, net of short positions | E34: =SUM(E35+E38+E41) -> 0
B35: 240 | C35: =C34&".1" -> 12.1 | D35: Direct holdings of CET1 capital of financial sector entities where the institution does not have a significant investment | E35: =SUM(E36:E37) -> 0
B36: 250 | C36: =C35&".1" -> 12.1.1 | D36: Gross direct holdings of CET1 capital of financial sector entities where the institution does not have a significant investment
B37: 260 | C37: =C35&".2" -> 12.1.2 | D37: (-) Permitted offsetting short positions in relation to the direct gross holdings included above
B38: 270 | C38: =C34&".2" -> 12.2 | D38: Indirect holdings of CET1 capital of financial sector entities where the institution does not have a significant investment | E38: =SUM(E39+E40) -> 0
B39: 280 | C39: =C38&".1" -> 12.2.1 | D39: Gross indirect holdings of CET1 capital of financial sector entities where the institution does not have a significant investment
B40: 290 | C40: =C38&".2" -> 12.2.2 | D40: (-) Permitted offsetting short positions in relation to the indirect gross holdings included above
B41: 291 | C41: =C34&".3" -> 12.3 | D41: Synthetic holdings of CET1 capital of financial sector entities where the institution does not have a significant investment | E41: =SUM(E42+E43) -> 0
B42: 292 | C42: =C41&".1" -> 12.3.1 | D42: Gross synthetic holdings of CET1 capital of financial sector entities where the institution does not have a significant investment
B43: 293 | C43: =C41&".2" -> 12.3.2 | D43: (-) Permitted offsetting short positions in relation to the synthetic gross holdings included above
B44: 300 | C44: 13 | D44: Holdings of AT1 capital of financial sector entities where the institution does not have a significant investment, net of short positions | E44: =SUM(E45+E48+E51) -> 0
B45: 310 | C45: =C44&".1" -> 13.1 | D45: Direct holdings of AT1 capital of financial sector entities where the institution does not have a significant investment | E45: =SUM(E46+E47) -> 0
B46: 320 | C46: =C45&".1" -> 13.1.1 | D46: Gross direct holdings of AT1 capital of financial sector entities where the institution does not have a significant investment
B47: 330 | C47: =C45&".2" -> 13.1.2 | D47: (-) Permitted offsetting short positions in relation to the direct gross holdings included above
B48: 340 | C48: =C44&".2" -> 13.2 | D48: Indirect holdings of AT1 capital of financial sector entities where the institution does not have a significant investment | E48: =SUM(E49+E50) -> 0
B49: 350 | C49: =C48&".1" -> 13.2.1 | D49: Gross indirect holdings of AT1 capital of financial sector entities where the institution does not have a significant investment
B50: 360 | C50: =C48&".2" -> 13.2.2 | D50: (-) Permitted offsetting short positions in relation to the indirect gross holdings included above
B51: 361 | C51: =C44&".3" -> 13.3 | D51: Synthetic holdings of AT1 capital of financial sector entities where the institution does not have a significant investment | E51: =SUM(E52+E53) -> 0
B52: 362 | C52: =C51&".1" -> 13.3.1 | D52: Gross synthetic holdings of AT1 capital of financial sector entities where the institution does not have a significant investment
B53: 363 | C53: =C51&".2" -> 13.3.2 | D53: (-) Permitted offsetting short positions in relation to the synthetic gross holdings included above
B54: 370 | C54: 14 | D54: Holdings of T2 capital of financial sector entities where the institution does not have a significant investment, net of short positions | E54: =SUM(E55+E58+E61) -> 0
B55: 380 | C55: =C54&".1" -> 14.1 | D55: Direct holdings of T2 capital of financial sector entities where the institution does not have a significant investment | E55: =SUM(E56+E57) -> 0
B56: 390 | C56: =C55&".1" -> 14.1.1 | D56: Gross direct holdings of T2 capital of financial sector entities where the institution does not have a significant investment
B57: 400 | C57: =C55&".2" -> 14.1.2 | D57: (-) Permitted offsetting short positions in relation to the direct gross holdings included above
B58: 410 | C58: =C54&".2" -> 14.2 | D58: Indirect holdings of T2 capital of financial sector entities where the institution does not have a significant investment | E58: =SUM(E59+E60) -> 0
B59: 420 | C59: =C58&".1" -> 14.2.1 | D59: Gross indirect holdings of T2 capital of financial sector entities where the institution does not have a significant investment
B60: 430 | C60: =C58&".2" -> 14.2.2 | D60: (-) Permitted offsetting short positions in relation to the indirect gross holdings included above
B61: 431 | C61: =C54&".3" -> 14.3 | D61: Synthetic holdings of T2 capital of financial sector entities where the institution does not have a significant investment | E61: =SUM(E62+E63) -> 0
B62: 432 | C62: =C61&".1" -> 14.3.1 | D62: Gross synthetic holdings of T2 capital of financial sector entities where the institution does not have a significant investment
B63: 433 | C63: =C61&".2" -> 14.3.2 | D63: (-) Permitted offsetting short positions in relation to the synthetic gross holdings included above
B64: Investments in the capital of financial sector entities where the institution has a significant investment
B65: 440 | C65: 15 | D65: Holdings of CET1 capital of financial sector entities where the institution has a significant investment, net of short positions | E65: =SUM(E66+E69+E72) -> 0
B66: 450 | C66: =C65&".1" -> 15.1 | D66: Direct holdings of CET1 capital of financial sector entities where the institution has a significant investment | E66: =SUM(E67+E68) -> 0
B67: 460 | C67: =C66&".1" -> 15.1.1 | D67: Gross direct holdings of CET1 capital of financial sector entities where the institution has a significant investment
B68: 470 | C68: =C66&".2" -> 15.1.2 | D68: (-) Permitted offsetting short positions in relation to the direct gross holdings included above
B69: 480 | C69: =C65&".2" -> 15.2 | D69: Indirect holdings of CET1 capital of financial sector entities where the institution has a significant investment | E69: =SUM(E70+E71) -> 0
B70: 490 | C70: =C69&".1" -> 15.2.1 | D70: Gross indirect holdings of CET1 capital of financial sector entities where the institution has a significant investment
B71: 500 | C71: =C69&".2" -> 15.2.2 | D71: (-) Permitted offsetting short positions in relation to the indirect gross holdings included above
B72: 501 | C72: =C65&".3" -> 15.3 | D72: Synthetic holdings of CET1 capital of financial sector entities where the institution has a significant investment | E72: =SUM(E73+E74) -> 0
B73: 502 | C73: =C72&".1" -> 15.3.1 | D73: Gross synthetic holdings of CET1 capital of financial sector entities where the institution has a significant investment
B74: 503 | C74: =C72&".2" -> 15.3.2 | D74: (-) Permitted offsetting short positions in relation to the synthetic gross holdings included above
B75: 510 | C75: 16 | D75: Holdings of AT1 capital of financial sector entities where the institution has a significant investment, net of short positions | E75: =SUM(E76+E79+E82) -> 0
B76: 520 | C76: =C75&".1" -> 16.1 | D76: Direct holdings of AT1 capital of financial sector entities where the institution has a significant investment | E76: =SUM(E77+E78) -> 0
B77: 530 | C77: =C76&".1" -> 16.1.1 | D77: Gross direct holdings of AT1 capital of financial sector entities where the institution has a significant investment
B78: 540 | C78: =C76&".2" -> 16.1.2 | D78: (-) Permitted offsetting short positions in relation to the direct gross holdings included above
B79: 550 | C79: =C75&".2" -> 16.2 | D79: Indirect holdings of AT1 capital of financial sector entities where the institution has a significant investment | E79: =SUM(E80+E81) -> 0
B80: 560 | C80: =C79&".1" -> 16.2.1 | D80: Gross indirect holdings of AT1 capital of financial sector entities where the institution has a significant investment
B81: 570 | C81: =C79&".2" -> 16.2.2 | D81: (-) Permitted offsetting short positions in relation to the indirect gross holdings included above
B82: 571 | C82: =C75&".3" -> 16.3 | D82: Synthetic holdings of AT1 capital of financial sector entities where the institution has a significant investment | E82: =SUM(E83+E84) -> 0
B83: 572 | C83: =C82&".1" -> 16.3.1 | D83: Gross synthetic holdings of AT1 capital of financial sector entities where the institution has a significant investment
B84: 573 | C84: =C82&".2" -> 16.3.2 | D84: (-) Permitted offsetting short positions in relation to the synthetic gross holdings included above
B85: 580 | C85: 17 | D85: Holdings of T2 capital of financial sector entities where the institution has a significant investment, net of short positions | E85: =SUM(E86+E89+E92) -> 0
B86: 590 | C86: =C85&".1" -> 17.1 | D86: Direct holdings of T2 capital of financial sector entities where the institution has a significant investment | E86: =E87+E88 -> 0
B87: 600 | C87: =C86&".1" -> 17.1.1 | D87: Gross direct holdings of T2 capital of financial sector entities where the institution has a significant investment
B88: 610 | C88: =C86&".2" -> 17.1.2 | D88: (-) Permitted offsetting short positions in relation to the direct gross holdings included above
B89: 620 | C89: =C85&".2" -> 17.2 | D89: Indirect holdings of T2 capital of financial sector entities where the institution has a significant investment | E89: =SUM(E90:E91) -> 0
B90: 630 | C90: =C89&".1" -> 17.2.1 | D90: Gross indirect holdings of T2 capital of financial sector entities where the institution has a significant investment
B91: 640 | C91: =C89&".2" -> 17.2.2 | D91: (-) Permitted offsetting short positions in relation to the indirect gross holdings included above
B92: 641 | C92: =C85&".3" -> 17.3 | D92: Synthetic holdings of T2 capital of financial sector entities where the institution has a significant investment | E92: =SUM(E93+E94) -> 0
B93: 642 | C93: =C92&".1" -> 17.3.1 | D93: Gross synthetic holdings of T2 capital of financial sector entities where the institution has a significant investment
B94: 643 | C94: =C92&".2" -> 17.3.2 | D94: (-) Permitted offsetting short positions in relation to the synthetic gross holdings included above
B95: Total risk exposure amounts of holdings not deducted from the corresponding capital category:
B96: 650 | C96: 18 | D96: Risk weighted exposures of CET1 holdings in financial sector entities which are not deducted from the institution's CET1 capital
B97: 660 | C97: 19 | D97: Risk weighted exposures of AT1 holdings in financial sector entities which are not deducted from the institution's AT1 capital
B98: 670 | C98: 20 | D98: Risk weighted exposures of T2 holdings in financial sector entities which are not deducted from the institution's T2 capital
B99: Temporary waiver from deduction from own funds
B100: 680 | C100: 21 | D100: Holdings on CET1 Capital Instruments of financial sector entities where the institution does not have a significant investment temporary waived
B101: 690 | C101: 22 | D101: Holdings on CET1 Capital Instruments of financial sector entities where the institution has a significant investment temporary waived
B102: 700 | C102: 23 | D102: Holdings on AT1 Capital Instruments of financial sector entities where the institution does not have a significant investment temporary waived
B103: 710 | C103: 24 | D103: Holdings on AT1 Capital Instruments of financial sector entities where the institution has a significant investment temporary waived
B104: 720 | C104: 25 | D104: Holdings on T2 Capital Instruments of financial sector entities where the institution does not have a significant investment temporary waived
B105: 730 | C105: 26 | D105: Holdings on T2 Capital Instruments of financial sector entities where the institution has a significant investment temporary waived
B106: Capital buffers
B107: 740 | C107: 27 | D107: Combined Buffer Requirement | E107: =SUM(E108+E111) -> 0
B108: 750 | D108: Total capital conservation buffer | E108: =SUM(E109:E110) -> 0
B109: 760 | D109: Conservation buffer due to macro-prudential or systemic risk identified at the level of a Member State
B110: 770 | D110: Institution specific countercyclical capital buffer
B111: 780 | D111: Systemic risk buffer
B112: 790 | D112: Systemical important institution buffer
B113: 800 | D113: Global Systemically Important Institution buffer
B114: 810 | D114: Other Systemically Important Institution buffer
B115: Pillar II requirements
B116: 820 | C116: 28 | D116: Own funds requirements related to Pillar II adjustments
B117: Additional information for investment firms
B118: 830 | C118: 29 | D118: Initial capital
B119: 840 | C119: 30 | D119: Own funds based on Fixed Overheads
B120: Additional information for calculating of reporting thresholds
B121: 850 | C121: 31 | D121: Non-domestic original exposures
B122: 860 | C122: 32 | D122: Total original exposures
B123: Basel I floor
B124: 870 | D124: Adjustments to total own funds
B125: 880 | D125: Own funds fully adjusted for Basel I floor
B126: 890 | D126: Own funds requirements for Basel I floor
B127: 900 | D127: Own funds requirements for Basel I floor - SA alternative

Sheet Sheet 4.2
B2: C 05.01 - TRANSITIONAL PROVISIONS (CA5.1)
B4: CA 5.1 | E4: Legal references | F4: Adjustments to CET1 | G4: Adjustments to AT1 | H4: Adjustments to T2 | I4: Adjustments included in RWAs | J4: Memorandum items
J5: Applicable percentage | K5: Eligible amount without transitional provisions
B6: Code | C6: ID | D6: Item | F6: 010 | G6: 020 | H6: 030 | I6: 040 | J6: 050 | K6: 060
B7: 010 | C7: 1 | D7: TOTAL ADJUSTMENTS | F7: =SUM(F8+F13+F18) -> 0 | G7: =SUM(G8+G13+G18) -> 0 | H7: =SUM(H8+H13+H18) -> 0 | I7: 0 | K7: 0
B8: 020 | C8: 1.1 | D8: GRANDFATHERED INSTRUMENTS | F8: =SUM(F9+F12) -> 0 | G8: =SUM(G9+G12) -> 0 | H8: =SUM(H9+H12) -> 0 | I8: 0 | K8: 0
B9: 030 | C9: 1.1.1 | D9: Grandfathered instruments: Instruments constituting state aid | E9: Article 462 of CRR | F9: =SUM(F10+F11) -> 0 | G9: =SUM(G10+G11) -> 0 | H9: =SUM(H10+H11) -> 0
B10: 040 | C10: 1.1.1.1 | D10: Instruments that qualified as own funds according to 2006/48/EC | E10: Article 462 (2), (3) and (4) of CRR | F10: 0 | G10: 0 | H10: 0
B11: 050 | C11: 1.1.1.2 | D11: Instruments issued by institutions that are incorporated in a Member State that is subject to an Economic Adjustment Programme | E11: Article 462(1), (2a), (3a), (5) and (6) of CRR | F11: 0 | G11: 0 | H11: 0
B12: 060 | C12: 1.1.2 | D12: Instruments not constituting state aid | F12: 0 | G12: 0 | H12: 0
B13: 070 | C13: 1.2 | D13: MINORITY INTERESTS AND EQUIVALENTS | F13: =SUM(F14:F15) -> 0 | G13: =SUM(G16) -> 0 | H13: =SUM(H17) -> 0
B14: 080 | C14: 1.2.1 | D14: Capital instruments and items that do not qualify as minority interests | E14: Articles 459 of CRR | F14: 0 | J14: 0
B15: 090 | C15: 1.2.2 | D15: Transitional recognition in consolidated own funds of minority interests | E15: Articles 79 and 460 of CRR | F15: 0 | J15: 1 | K15: ='Sheet 4'!E26 -> 0
B16: 091 | C16: 1.2.3 | D16: Transitional recognition in consolidated own funds of qualifying Additional Tier 1 capital | E16: Article 80 and 460 of CRR | G16: 0 | J16: 1 | K16: ='Sheet 4'!E72 -> 0
B17: 092 | C17: 1.2.4 | D17: Transitional recognition in consolidated own funds of qualifying Tier 2 capital | E17: Article 82 and 460 of CRR | H17: 0 | J17: 1 | K17: ='Sheet 4'!E93 -> 0
B18: 100 | C18: 1.3 | D18: OTHER TRANSITIONAL ADJUSTMENTS | E18: (sum, no link to CA1) | F18: =SUM(F19+F25+F63) -> 0 | G18: =SUM(G25+G63) -> 0 | H18: =SUM(H25+H63) -> 0
B19: 110 | C19: 1.3.1 | D19: Unrealised gains and losses | F19: =SUM(F20:F24) -> 0
B20: 120 | C20: 1.3.1.1 | D20: Unrealised gains | E20: Article 450 of CRR | F20: =-(J20*K20) -> 0 | J20: =SUMIF('Applicable Percentages'!A32:A36,#REF!,'Applicable Percentages'!B32:B36) -> 0 | K20: =SUM('Sheet 2'!M113+ABS('Sheet 1'!G380))-K22 -> 0
B21: 130 | C21: 1.3.1.2 | D21: Unrealised losses | E21: Article 449 of CRR | F21: =0 -> 0 | J21: =SUMIF('Applicable Percentages'!A32:A36,#REF!,'Applicable Percentages'!C32:C36) -> 0 | K21: ='Sheet 2'!N113-'Sheet 1'!F380-K23 -> 0
B22: 133 | C22: 1.3.1.3. | D22: Unrealised gains on exposures to central governments classified in the "Available for sale" category of EU-endorsed IAS39 | E22: Article 449 of CRR | F22: =-(J22*K22) -> 0 | J22: =SUMIF('Applicable Percentages'!A32:A36,#REF!,'Applicable Percentages'!B32:B36) -> 0 | K22: =IF('Sheet 1'!L89<0,ABS('Sheet 1'!L89),0) -> 0
B23: 136 | C23: 1.3.1.4. | D23: Unrealised loss on exposures to central governments classified in the "Available for sale" category of EU-endorsed IAS39 | E23: Article 449 of CRR | F23: 0 | J23: =SUMIF('Applicable Percentages'!A32:A36,#REF!,'Applicable Percentages'!C32:C36) -> 0 | K23: =IF('Sheet 1'!L89>0,-'Sheet 1'!L89,0) -> 0
B24: 138 | C24: 1.3.1.5. | D24: Fair value gains and losses arising from the institution's own credit risk related to derivative liabilities | E24: Article 450 of CRR | F24: 0 | J24: 1 | K24: ='Sheet 4'!E32 -> 0
B25: 140 | C25: 1.3.2 | D25: Deductions | E25: (sum, no link to CA1) | F25: =SUM(F26+F27+F28+F29+F30+F33+F43+F53+F58+F57+F62) -> 0 | G25: =SUM(G26+G27+G29+G33+G43+G53+G58) -> 0 | H25: =SUM(H29+H33+H43+H53+H58) -> 0 | I25: =SUM(I28+I33+I43+I53+I58+I57) -> 0 | K25: =K26+K27+K28+K29+K30+K33+K43+K53+K58 -> 0
B26: 150 | C26: 1.3.2.1 | D26: Losses for the current financial year | E26: Articles 33 (1) point (a), 451 (1), 453 (2) and 458 of CRR | F26: 0 | G26: 0 | J26: =SUMIF('Applicable Percentages'!A39:A43,#REF!,'Applicable Percentages'!B39:B43) -> 0 | K26: =IF('Sheet 4'!E18<0,'Sheet 4'!E18,0) -> 0
B27: 160 | C27: 1.3.2.2 | D27: Intangible assets | E27: Articles 33 (1) point (b), 451 (1), 453 (3) and 458 of CRR | F27: 0 | G27: 0 | J27: =SUMIF('Applicable Percentages'!A39:A43,#REF!,'Applicable Percentages'!B39:B43) -> 0 | K27: ='Sheet 4'!E38 -> 0
B28: 170 | C28: 1.3.2.3 | D28: Deferred tax assets that rely on future profitability and do not arise from temporary differences | E28: Articles 33 (1) point (c), 451 (1), 453 (4) and 458 of CRR | F28: 0 | I28: 0 | J28: =SUMIF('Applicable Percentages'!A39:A43,#REF!,'Applicable Percentages'!B39:B43) -> 0 | K28: ='Sheet 4'!E41 -> 0
B29: 180 | C29: 1.3.2.4 | D29: IRB shortfall of provisions to expected losses | E29: Articles 33 (1) point (d), 451 (1), 453 (5) and 458 of CRR | F29: 0 | G29: 0 | H29: 0 | J29: =SUMIF('Applicable Percentages'!A39:A43,#REF!,'Applicable Percentages'!B39:B43) -> 0 | K29: ='Sheet 4'!E42 -> 0
B30: 190 | C30: 1.3.2.5 | D30: Defined benefit pension fund assets | E30: Articles 33 (1) point (e), 451 (1), 453 (6) and 458 of CRR | F30: 0 | J30: =SUMIF('Applicable Percentages'!A39:A43,#REF!,'Applicable Percentages'!B39:B43) -> 0 | K30: ='Sheet 4'!E43 -> 0
B31: 194 | C31: 1.3.2.5* | D31: of which: Introduction of amendments to IAS 19 - positive item | E31: Article 473 of CRR
B32: 198 | C32: 1.3.2.5** | D32: of which: Introduction of amendments to IAS 19 - negative item | E32: Article 473 of CRR
B33: 200 | C33: 1.3.2.6 | D33: Own instruments | F33: =SUM(F34+F37+F40) -> 0 | G33: =SUM(G34+G37+G40) -> 0 | H33: =SUM(H34+H37+H40) -> 0 | I33: =SUM(I34+I37+I40) -> 0 | K33: =SUM(K34+K37+K40) -> 0
B34: 210 | C34: 1.3.2.6.1 | D34: Own CET1 instruments | E34: Articles 33 (1) point (f), 451 (1), 453 (7) and 458 of CRR | F34: 0 | G34: 0 | I34: 0 | J34: =SUMIF('Applicable Percentages'!A39:A43,#REF!,'Applicable Percentages'!B39:B43) -> 0 | K34: ='Sheet 4'!E12 -> 0
B35: 211 | C35: 1.3.2.6.1** | D35: of which: Direct holdings | F35: 0 | G35: 0 | J35: =SUMIF('Applicable Percentages'!A39:A43,#REF!,'Applicable Percentages'!B39:B43) -> 0 | K35: ='Sheet 4'!E13 -> 0
B36: 212 | C36: 1.3.2.6.1* | D36: of which: Indirect holdings | F36: 0 | I36: 0 | J36: =SUMIF('Applicable Percentages'!A39:A43,#REF!,'Applicable Percentages'!B39:B43) -> 0 | K36: ='Sheet 4'!E14 -> 0
B37: 220 | C37: 1.3.2.6.2 | D37: Own AT1 instruments | E37: Articles 53 point (a), 454, 455(2) and 458 of CRR | F37: 0 | G37: 0 | I37: 0 | J37: =SUMIF('Applicable Percentages'!A39:A43,#REF!,'Applicable Percentages'!B39:B43) -> 0 | K37: ='Sheet 4'!E66 -> 0
B38: 221 | C38: 1.3.2.6.2** | D38: of which: Direct holdings | F38: 0 | G38: 0 | J38: =SUMIF('Applicable Percentages'!A39:A43,#REF!,'Applicable Percentages'!B39:B43) -> 0 | K38: ='Sheet 4'!E67 -> 0
B39: 222 | C39: 1.3.2.6.2* | D39: of which: Indirect holdings | I39: 0 | J39: =SUMIF('Applicable Percentages'!A39:A43,#REF!,'Applicable Percentages'!B39:B43) -> 0 | K39: ='Sheet 4'!E68 -> 0
B40: 230 | C40: 1.3.2.6.3 | D40: Own T2 instruments | E40: Articles 63 point (a), 456, 457(2) and 458 of CRR | H40: 0 | I40: 0 | J40: =SUMIF('Applicable Percentages'!A39:A43,#REF!,'Applicable Percentages'!B39:B43) -> 0 | K40: ='Sheet 4'!E87 -> 0
B41: 231 | C41: 1.3.2.6.3* | D41: of which: Direct holdings | H41: 0 | J41: =SUMIF('Applicable Percentages'!A39:A43,#REF!,'Applicable Percentages'!B39:B43) -> 0 | K41: ='Sheet 4'!E88 -> 0
B42: 232 | C42: 1.3.2.6.3** | D42: of which: Indirect holdings | I42: 0 | J42: =SUMIF('Applicable Percentages'!A39:A43,#REF!,'Applicable Percentages'!B39:B43) -> 0 | K42: ='Sheet 4'!E89 -> 0
B43: 240 | C43: 1.3.2.7 | D43: Reciprocal cross holdings | F43: =SUM(F44+F45+F46+F48+F49+F51+F52) -> 0 | G43: =SUM(G45+G46+G47+G48+G49+G51+G52) -> 0 | H43: =SUM(H45+H46+H48+H49+H50+H51+H52) -> 0 | I43: =SUM(I45+I46+I48+I49+I51+I52) -> 0 | K43: =SUM(K44+K47+K50) -> 0
B44: 250 | C44: 1.3.2.7.1 | D44: Reciprocal cross holdings in CET1 Capital | E44: Articles 33(1) point (g), 451 (1), 453(8) and 458 of CRR | F44: 0 | J44: =SUMIF('Applicable Percentages'!A39:A43,#REF!,'Applicable Percentages'!B39:B43) -> 0 | K44: ='Sheet 4'!E47 -> 0
B45: 260 | C45: 1.3.2.7.1.1 | D45: Reciprocal cross holdings in CET1 Capital of financial sector entities where the institution does not have a significant investment | E45: Articles 33(1) point (g), 451 (1), 453(8) point (a) and 458 of CRR | F45: 0 | G45: 0 | H45: 0 | I45: 0
B46: 270 | C46: 1.3.2.7.1.2 | D46: Reciprocal cross holdings in CET1 Capital of financial sector entities where the institution has a significant investment | E46: Articles 33(1) point (g), 451 (1), 453(8) point (b) and 458 of CRR | F46: 0 | G46: 0 | H46: 0 | I46: 0
B47: 280 | C47: 1.3.2.7.2 | D47: Reciprocal cross holdings in AT1 Capital | E47: Articles 53 point (b), 454, 455(3) and 458 of CRR | G47: 0 | J47: =SUMIF('Applicable Percentages'!A39:A43,#REF!,'Applicable Percentages'!B39:B43) -> 0 | K47: ='Sheet 4'!E74 -> 0
B48: 290 | C48: 1.3.2.7.2.1 | D48: Reciprocal cross holdings in AT1 Capital of financial sector entities where the institution does not have a significant investment | E48: Articles 53 point (b), 454, 455(3) point (a) and 458 of CRR | F48: 0 | G48: 0 | H48: 0
B49: 300 | C49: 1.3.2.7.2.2 | D49: Reciprocal cross holdings in AT1 Capital of financial sector entities where the institution has a significant investment | E49: Articles 53 point (b), 454, 455(3) point (b) and 458 of CRR | F49: 0 | G49: 0 | H49: 0
B50: 310 | C50: 1.3.2.7.3 | D50: Reciprocal cross holdings in T2 Capital | E50: Articles 63 point (b), 456, 457(3) and 458 of CRR | H50: 0 | J50: =SUMIF('Applicable Percentages'!A39:A43,#REF!,'Applicable Percentages'!B39:B43) -> 0 | K50: ='Sheet 4'!E97 -> 0
B51: 320 | C51: 1.3.2.7.3.1 | D51: Reciprocal cross holdings in T2 Capital of financial sector entities where the institution does not have a significant investment | E51: Articles 63 point (b), 456, 457(3) point (a) and 458 of CRR | F51: 0 | G51: 0 | H51: 0 | I51: 0
B52: 330 | C52: 1.3.2.7.3.2 | D52: Reciprocal cross holdings in T2 Capital of financial sector entities where the institution has a significant investment | E52: Articles 63 point (b), 456, 457(3) point (b) and 458 of CRR | F52: 0 | G52: 0 | H52: 0 | I52: 0
B53: 340 | C53: 1.3.2.8 | D53: Own funds instruments of financial sector entities where the institution does not have a significant investment | F53: =SUM(F54+F55+F56) -> 0 | G53: =SUM(G54+G55+G56) -> 0 | H53: =SUM(H54+H55+H56) -> 0 | I53: =SUM(I54+I55+I56) -> 0 | K53: =SUM(K54:K56) -> 0
B54: 350 | C54: 1.3.2.8.1 | D54: CET1 instruments of financial sector entities where the institution does not have a significant investment | E54: Articles 33(1) point (h), 451 (1), 453(9) and 458 of CRR | F54: 0 | G54: 0 | H54: 0 | I54: 0 | J54: 1 | K54: ='Sheet 4'!E54 -> 0
B55: 360 | C55: 1.3.2.8.2 | D55: AT1 instruments of financial sector entities where the institution does not have a significant investment | E55: Articles 53 point (c), 454, 455(4) and 458 of CRR | F55: 0 | G55: 0 | H55: 0 | I55: 0 | J55: 1 | K55: ='Sheet 4'!E75 -> 0
B56: 370 | C56: 1.3.2.8.3 | D56: T2 instruments of financial sector entities where the institution does not have a significant investment | E56: Articles 63 point (c), 456, 457(4) and 458 of CRR | F56: 0 | G56: 0 | H56: 0 | I56: 0 | J56: 1 | K56: ='Sheet 4'!E98 -> 0
B57: 380 | C57: 1.3.2.9 | D57: Deferred tax assets that are dependent on future profitability and arise from temporary differences and CET1 instruments of financial sector entities where the institution has a significant investment | E57: Article 452(2) and (3) of CRR | F57: =I57 -> 0 | I57: =IF(AND(OR('COVER SHEET'!B1=2014,'COVER SHEET'!B1=2015,'COVER SHEET'!B1=2016,'COVER SHEET'!B1=2017),'Sheet 4.1'!E30>'Sheet 4.1'!E31),'Sheet 4.1'!E30-'Sheet 4.1'!E31,0) -> 0 | K57: =IF('Sheet 4.1'!E9>0,-MIN('Sheet 4.1'!E9,'Sheet 4.1'!E30),0) -> 0
B58: 390 | C58: 1.3.2.10 | D58: Own funds instruments of financial sector entities where the institution has a significant investment | F58: =SUM(F59+F60+F61) -> 0 | G58: =SUM(G59+G60+G61) -> 0 | H58: =SUM(H59+H60+H61) -> 0 | I58: =SUM(I59+I60+I61) -> 0 | K58: =SUM(K59:K61) -> 0
B59: 400 | C59: 1.3.2.10.1 | D59: CET1 instruments of financial sector entities where the institution has a significant investment | E59: Articles 33(1) point (i), 451 (1), 453(10) and 458 of CRR | F59: 0 | G59: 0 | H59: 0 | I59: 0 | J59: 1 | K59: ='Sheet 4'!E56 -> 0
B60: 410 | C60: 1.3.2.10.2 | D60: AT1 instruments of financial sector entities where the institution has a significant investment | E60: Articles 53 point (d), 454, 455(4) and 458 of CRR | F60: 0 | G60: 0 | H60: 0 | I60: 0 | J60: 1 | K60: ='Sheet 4'!E76 -> 0
B61: 420 | C61: 1.3.2.10.3 | D61: T2 instruments of financial sector entities where the institution has a significant investment | E61: Articles 63 point (d), 456, 457(4) and 458 of CRR | F61: 0 | G61: 0 | H61: 0 | I61: 0 | J61: 1 | K61: ='Sheet 4'!E99 -> 0
B62: 425 | C62: 1.3.2.11 | D62: Exemption Deduction of Equity Holdings in Insurance Companies from Common Equity Tier 1 Items | E62: Article 452(2a) of CRR
B63: 430 | C63: 1.3.3 | D63: Additional filters and deductions | E63: Article 461 of CRR | F63: 0 | G63: 0 | H63: 0 | J63: 0

Sheet Sheet 5
H2: Initialled by the auditor for identification purposes only
B4: FIXED OVERHEAD REQUIREMENT
B6: As at: | C6: ='COVER SHEET'!C29 -> 00:00:00 | M6: Yes
M7: No
A8: 1 | B8: How many months are represented in the recent Audited Financial Statements
A10: 2 | B10: Total Expenditure | M10: 1
M11: 2
M12: 3
A13: 3 | B13: Less: | M13: 4
A14: 3.a | B14: a) fully discretionary staff bonuses | M14: 5
M15: 6
A16: 3.b | B16: b) employees', directors' and partners' shares in profits, to the extent that they are fully discretionary | M16: 7
M17: 8
A18: 3.c | B18: c) other appropriations of profits and other variable remuneration, to the extent that they are fully discretionary | M18: 9
M19: 10
M20: 11
M21: 12
M22: 13
M23: 14
A24: 3.d | B24: d) Commissions that are directly related to the acqusition of gross revenue (derived from investment services activities), paid or payable to third parties; and/ shared commission and fees which are directly related to commission and fees receivable, which are included within total revenue, and where the payment of the commission and fees payable is contingent upon the actual receipt of the commission and fees receivable | M24: 15
M25: 16
M26: 17
A27: 3.e | B27: e) fees, brokerage and other charges paid to clearing houses, exchanges and intermediate brokers for the purposes of executing, registering or clearing transactions | M27: 18
A28: 3.f | B28: f) fees to tied agents
A29: 3.g | B29: g) expenditures from taxes due in relation to annual profits;
A31: 3.h | B31: h) annual payments related to contract-based profit and loss transfer agreements with parent undertaking
A34: 3.i | B34: i) expenses related to items that have already been deducted from own funds in accordance with Article 36(1) of Regulation (EU) 2013/575
A35: 3.j | B35: j) non-recurring expenses from non-ordinary activities | I35: =SUM(G14:G35) -> 0
A38: 4 | B38: Relevant Fixed Expenditure | I38: =+I10-I35 -> 0
A40: 5 | B40: Other Additions
A42: 6 | B42: Does the licence holder make use of tied agents?
G43: =IF(G42="yes","Input 35% of all fees related to tied agents","") -> 
A45: 7 | B45: (One quarter of the annual relevant fixed expenditure) | I45: =((I38*13/52)+(I42*13/52)+(I40*13/52)) -> 0
A47: 8 | B47: Fixed Overhead Requirement | I47: =IF(H8=0,0,((I45)/H8)*12) -> 0

Sheet Sheet 6
I3: 0
B4: FINANCIAL RESOURCES REQUIREMENT
B6: As at | C6: ='COVER SHEET'!C29 -> 00:00:00
A10: 1.0 | B10: Total Own Funds | I10: ='Sheet 4'!E5 -> 0
A12: 2 | B12: Fixed Overhead Requirement | I12: ='Sheet 5'!I47 -> 0
A16: 3 | B16: Initial Capital | C16: Category 2 licence holder | I16: =IF('COVER SHEET'!C36>0,125000*1/'COVER SHEET'!C36,0) -> 0 | L16: Cat 2
A18: 4 | B18: Additional Capital Resources before reductions | G18: =IF(M27>0,N27,0) -> 0 | L18: =I12 -> 0 | M18: FO
A20: 5 | B20: Insert percentage exemption from additional amount of Own Funds (if any)
A22: 6 | B22: Additional Capital Resources after reductions | I22: =G18- (G18*G20) -> 0
L23: =IF(I24>L18,I24, IF(L18>I24,L18,0)) -> 0 | M23: higher of above & initial capital
A24: 7 | B24: Total Capital | I24: =IF(((I16+I22)*('COVER SHEET'!C36))>10000000,(10000000/'COVER SHEET'!C36),(I16+I22)) -> 0
L26: Addition capital | M26: Add cap limit | N26: amount taken
A27: 8 | B27: CAPITAL RESOURCES REQUIREMENT | I27: =IF(L23=0,L25,L23) -> 0 | L27: =IF(AND('Sheet 1'!D422>0,('Sheet 1'!D422*'COVER SHEET'!C36)>250000000),((('Sheet 1'!D422*'COVER SHEET'!C36)-250000000)*0.0002),0) -> 0 | M27: =L27 -> 0 | N27: =IF(M27>0,(M27/'COVER SHEET'!C36),0) -> 0
A29: 9 | B29: FINANCIAL RESOURCES REQUIREMENT | I29: =I10-I27 -> 0

Sheet Sheet 7
B4: REPRESENTATIONS | F4: =IF('COVER SHEET'!C18="","",'COVER SHEET'!C18) -> 
K6: Insert Yes/ No:
A8: 1. | B8: Is the licence holder able, and will it be able for the forseeable future, to meet all of its liabilities | O8: YES
B9: as they fall due for payment? | O9: NO
A11: 2. | B11: Have the licence holder's Financial Resources been in excess of or equal to its Financial
B12: Resources Surplus throughout the period ending on the Accounting Reference Date?
A14: 3. | B14: We Confirm that :
B16: i. | C16: The licence holder's financial resources have been properly calculated in accordance with the MFSA's requirements.
B19: ii. | C19: All matters (including contingent liabilities, claims and litigation) which might reasonably be expected to have a material effect on the licence holder's financial position at the date of submission of these statements have been declared herewith or notified in writing to MFSA.
B23: iii. | C23: An assessment has been carried out on the Investment Committee members and no information was found that may give rise to any doubt regarding the members’ fit and proper assessment, as per Rule R3-3.2 of Part A of the Investment Services Rules for Investment Services Providers.
A28: 4. | B28: Names of Shareholders and members having direct or indirect holding greater than or equal to
B29: ten per cent of the capital issued by the Licence Holder:
B31: Name of Member / Shareholder | I31: Percentage held: | K31: Number of shares held:
A55: 5. | B55: I further confirm that during the above mentioned period, the Licence Holder has:
C57: not received any complaints from clients;
C59: has received (please specify number:) | H59: complaints from clients. At the end of the
C60: period, the licence holder has (please specify number:) | J60: complaints which
C61: have not been resolved.
A64: 6. | B64: I am a director/ partner/ principal of the licence holder and I confirm that during
B65: the period | E65: to
B67: the business of the licence holder has been conducted in accordance with:-
B69: a. | C69: the Investment Services Act;
B70: b. | C70: the licence conditions; and
B71: c. | C71: any recommendations or directives issued to the licence holder by the
C72: Malta Financial Services Authority
B74: except for: (kindly provide details)
B80: and that the Malta Financial Services Authority has been notified of all matters which may influence
B81: its decision to allow the licence to continue.
A84: 7. | B84: This Financial Return was approved by the licence holder on : | J84: Date.
A86: 8. | B86: This is an Annual Financial Return updated to accurately reflect the information in the
B87: Audited Financial Statements. | K87: NO
A89: 9. | B89: It is accompanied by the Audited Financial Statements, the report of the auditor
B90: to the MFSA and a copy of the Management Letter as required by the MFSA. | K90: NO
B92: Signed on behalf of licence holder by :
B94: Signed: | H94: Date:
C95: (Director/ Authorised Signatory)
B97: Name:
B99: Signed: | H99: Date:
C100: (Director/ Second Authorised Signatory)
B102: Name:
A105: 10. | B105: This Section should be completed by the Audit Partner/ Manager in charge.
B107: This Return should be read in conjunction with the auditor's report to the MFSA dated
B109: Signed by the Audit Manager/Partner in charge for identification purposes only:
N110: =#REF! -> 
B111: Signed: | H111: Date:
B113: Name:

Sheet Sheet 8
L4: Old Fee Calculation
N6: Fixed (€) | O6: Variable/tranche (€) | P6: Variable | Q6: Total | R6: Currency
C7: ANNUAL SUPERVISORY FEE CALCULATOR | L7: Category 1A | N7: 2000 | O7: 350 | P7: =IF($E$27<50000,0,IF($E$27<=1000000,(ROUNDUP((($E$27-50000)/50000),0)*$O$7),(19*$O$7))) -> 0 | Q7: =N7+P7 -> 2000 | R7: EUR
L8: Category 1B | N8: 2750 | O8: 350 | P8: =IF($E$27<50000,0,IF($E$27<=1000000,(ROUNDUP((($E$27-50000)/50000),0)*$O$8),(19*$O$8))) -> 0 | Q8: =N8+P8 -> 2750 | R8: GBP
D9: (To be compiled and submitted in hard copy on an Annual basis together with the Audited Annual Financial Return) | L9: Category 2 | N9: 4500 | O9: 400 | P9: =IF($E$27<250000,0,IF($E$27<=5000000,(ROUNDUP((($E$27-250000)/250000),0)*$O$9),(19*$O$9))) -> 0 | Q9: =N9+P9 -> 4500 | R9: USD
L10: Category 3 | N10: 6000 | O10: 400 | P10: =IF($E$27<250000,0,IF($E$27<=50000000,(ROUNDUP((($E$27-250000)/250000),0)*$O$10),(199*$O$10))) -> 0 | Q10: =N10+P10 -> 6000
L11: Category 4A | N11: 15000 | O11: N/A | P11: N/A | Q11: =N11 -> 15000
C12: 1 | D12: Name of Licence Holder | E12: ='COVER SHEET'!C18 -> 0 | L12: Category 4B | N12: 5000 | O12: N/A | P12: N/A | Q12: =N12 -> 5000
C14: 2 | D14: Licence Category | E14: Category 2 | L14: Old fee total: | N14: =IF(E14=L7,Q7,IF(E14=L8,Q8,IF(E14=L9,Q9,IF(E14=L10,Q10,IF(E14=L11,Q11,IF(E14=L12,Q12,0)))))) -> 4500
C16: 3 | D16: Gross revenue indicated in the Annual Audited Financial Statements and that is derived from activities for which an investment services licence was issued in terms of Article 3 of the Investment Services Act | E16: ='Sheet 2'!K59-'Sheet 2'!K56 -> 0 | L16: New Fee Calculation | N16: Minimum Fee | O16: First €250k in Net Revenue | P16: Every additional €250k in Net Revenue
C19: 4 | D19: Commission that are directly related to the acquisition of the said gross revenue, paid or payable to third parties | E19: ='Sheet 1'!H48 -> 0 | Q19: Maximum Fee | R19: De-Minimis (refer to Regulation 4(1)(e)
L20: 2025 | N20: 6500 | O20: 6500 | P20: 700 | Q20: 19800 | R20: 6000
C21: 5 | D21: Currency in which accounts are reported | E21: ='COVER SHEET'!C34 -> 0 | L21: 2026 | N21: 7600 | O21: 7600 | P21: 700 | Q21: 20900 | R21: 6750
L22: 2027 | N22: 8800 | O22: 8800 | P22: 700 | Q22: 22100 | R22: 7000
C23: 6 | D23: Revenue in reported currency (as defined in L.N. 370 of 2024 - Investment Services Act (Fees) Regulations, 2024) | E23: =E16-E19 -> 0 | L23: 2028 | N23: 10000 | O23: 10000 | P23: 700 | Q23: 23300 | R23: 7250
L24: 2029 | N24: 11000 | O24: 11000 | P24: 800 | Q24: 26200 | R24: 7500
C25: 7 | D25: Exchange rate as at end of reporting period converting the reporting currency to EURO | E25: ='COVER SHEET'!C36 -> 0
C27: 8 | D27: Revenue in EURO | E27: =E23*E25 -> 0
L28: Current Year | N28: =YEAR(EDATE('COVER SHEET'!C29,5)) -> 1900 | P28: Minimum Fee | Q28: =VLOOKUP(N28,L19:R24, 3, FALSE) -> 
C29: 9 | D29: Annual Supervisory Fee due in EURO | E29: =L53 -> 4500 | L29: Use post 2025 fees | N29: =IF(N28>=2025, 1, 0) -> 0 | P29: First €250k in Net Revenue | Q29: =VLOOKUP(N28,L20:R24,4,FALSE) -> 
P30: Every additional €250k in Net Revenue | Q30: =VLOOKUP(N28,L20:R24,5,FALSE) -> 
B31: Signed on behalf of licence holder by : | P31: Maximum Fee | Q31: =VLOOKUP(N28,L20:R24,6,FALSE) -> 
P32: De-Minimis (refer to Regulation 4(1)(e) | Q32: =VLOOKUP(N28,L20:R24,7,FALSE) -> 
B33: We confirm that the above computation is in line with the provision set out in the L.N. 370 of 2024 - Investment Services Act (Fees) Regulations, 2024.
B35: Signed: | F35: Date: | H35: =IF(G35="",0,1) -> 0
C36: (Director/ Authorised Signatory) | P36: Fee on first 250k | Q36: =IF(E27<=250000, Q29, Q29) -> 
P37: Additional tiers | Q37: =IF(E27>250000, ROUNDUP((E27-250000)/250000, 0), 0) -> 0
B38: Name: | E38: =IF(C38="",0,1) -> 0 | P38: Total additional cost | Q38: =Q37*Q30 -> 
P39: Total fee | Q39: =SUM(Q38,Q36) -> 
B40: Signed: | F40: Date: | H40: =IF(G40="",0,1) -> 0
C41: (Director/ Authorised Signatory)
P42: Apply ceiling | Q42: =IF(Q39>=Q31, Q31, Q39) -> 
B43: Name: | E43: =IF(C43="",0,1) -> 0
B45: This Section must be filled only if the return is an Annual Financial Return. It should be completed by the Audit Partner/ Manager in charge
L46: De Minimis
B47: We confirm that we have checked the above fee computation ad endorsed the Licence Holder's declarations set out above.
N48: Apply DeMinimis Fee: | P48: =Q32 -> 
B49: Signed: | F49: Date:
B51: Name: | L51: Final Fee Amount
L53: =IF(N29 < 1, N14, IF('COVER SHEET'!C26="De-Minimis", 'Sheet 8'!P48, 'Sheet 8'!Q42)) -> 4500
B54: Notes:
B56: 1. Please ensure that the figures reported above are consistent with figures reported in audited financial statements and other data/ information submitted to the Malta Financial Services Authority.
B59: 2. Please ensure that you send your remittance to the Malta Financial Services Authority as soon as possible. Cheques are to be sent payable to the 'Malta Financial Services Authority' and are to be sent to the:
B61: Malta Financial Services Authority Finance Department Triq L- Imdina, Zone 1 Central Business District Birkirkara CBD 1010
B63: 3. The Authority reserves the right to carry out random or full checks on data / information and fee computation submitted.

Sheet Non-Malta Funds
B2: NON-MALTA DOMICILED FUNDS MANAGED IN MALTA
C4: ='COVER SHEET'!C18 -> 0 | G4: DATA PROVIDED AS AT | H4: ='COVER SHEET'!C29 -> 00:00:00
B6: Kindly Indicate the number of non-Malta domiciled Collective Investment Schemes (including sub-Funds) managed by the Fund Manager directly or indirectly.
B7: In the case of both feeder and master funds being managed, kindly list both funds but include AUM only once. | F7: Please input in the relevant cells highlighted in blue
A9: 0 | B9: Name of non-Malta domiciled Collective Investment Scheme managed by the fund manager | C9: Name of sub-Fund | D9: Domiciled country of fund (Country where the fund is licensed) | E9: Name of Custodian | F9: Location of Custodian | G9: Other custodians (if any) | H9: Location of other custodians (if any) | I9: Type of fund (equity fund, bond fund, hedge fund, real estate fund, money market fund, etc.) | J9: Assets Under Management (in EUR)
A10: 1
A11: =A10+1 -> 2
A12: 3
A13: 4
A14: 5
A15: 6
A16: 7
A17: 8
A18: 9
A19: 10
A20: 11
A21: 12
A22: 13
A23: 14
A24: 15
A25: 16
A26: 17
A27: 18
A28: 19
A29: 20
A30: 21
A31: 22
A32: 23
A33: 24
A34: 25
A35: 26
A36: 27
A37: 28
A38: 29
A39: 30
A40: 31
A41: 32
A42: 33
A43: 34
A44: 35
A45: 36
A46: 37
A47: 38
A48: 39
A49: 40
A50: 41
A51: 42
A52: 43
A53: 44
A54: 45
A55: 46
A56: 47
A57: 48
A58: 49
A59: 50
A60: 51
A61: 52
A62: 53
A63: 54
A64: 55
A65: 56
A66: 57
A67: 58
A68: 59
A69: 60
A70: 61
A71: 62
A72: 63
A73: 64
A74: 65
A75: =A74+1 -> 66
A76: 67
A77: 68
A78: 69
A79: 70
A80: 71
A81: 72
A82: 73
A83: 74
A84: 75
A85: 76
A86: 77
A87: 78
A88: 79
A89: 80
A90: 81
A91: 82
A92: 83
A93: 84
A94: 85
A95: 86
A96: 87
A97: 88
A98: 89
A99: 90
A100: 91
A101: 92
A102: 93
A103: 94
A104: 95
A105: 96
A106: 97
A107: 98
A108: 99
A109: 100
A110: 101
A111: 102
A112: 103
A113: 104
A114: 105
A115: 106
A116: 107
A117: 108
A118: 109
A119: 110
A120: 111
A121: 112
A122: 113
A123: 114
A124: 115
A125: 116
A126: 117
A127: 118
A128: 119
A129: 120
A130: 121
A131: 122
A132: 123
A133: 124
A134: 125
A135: 126
A136: 127
A137: 128
A138: 129
A139: =A138+1 -> 130
A140: 131
A141: 132
A142: 133
A143: 134
A144: 135
A145: 136
A146: 137
A147: 138
A148: 139
A149: 140
A150: 141
A151: 142
A152: 143
A153: 144
A154: 145
A155: 146
A156: 147
A157: 148
A158: 149
A159: 150
A160: 151
A161: 152
A162: 153
A163: 154
A164: 155
A165: 156
A166: 157
A167: 158
A168: 159
A169: 160
A170: 161
A171: 162
A172: 163
A173: 164
A174: 165
A175: 166
A176: 167
A177: 168
A178: 169
A179: 170
A180: 171
A181: 172
A182: 173
A183: 174
A184: 175
A185: 176
A186: 177
A187: 178
A188: 179
A189: 180
A190: 181
A191: 182
A192: 183
A193: 184
A194: 185
A195: 186
A196: 187
A197: 188
A198: 189
A199: 190
A200: 191
A201: 192
A202: 193
A203: =A202+1 -> 194
A204: 195
... 30 more rows

Sheet ESG Funds
B2: Information as per Regulation (EU) 2019/2088 ("SFDR")
C4: ='COVER SHEET'!C18 -> 0 | F4: DATA PROVIDED AS AT | G4: ='COVER SHEET'!C29 -> 00:00:00 | K4: Article 8
K5: Article 9
A6: 1 | B6: Does the Licence Holder consider PAIs at entity level, as referred to in SFDR Article 4(1)? | F6: =IF(E6="","Field is required. Please select either Yes/No","") -> Field is required. Please select either Yes/No
A8: 2 | B8: Does the Licence Holder consider PAIs at product level, as referred to in SFDR Article 7(1)? | F8: =IF(E8="", "Field is required. Please select either Yes/No", "") -> Field is required. Please select either Yes/No
A10: 3 | B10: Does the Licence Holder have Article 8 and/or Article 9 funds under its management? | F10: =IF(E10="", "Field is required. Please select either Yes/No", "") -> Field is required. Please select either Yes/No
B12: =IF(E10 = "Yes", "Kindly fill in the table below given that the Licence Holder has Article 8 / Article 9 funds under its management", "Do not fill in the table below as the Licence Holder does not have Article 8 / Article 9 funds under its management") -> Do not fill in the table below as the Licence Holder does not have Article 8 / Article 9 funds under its management
A13: 0 | B13: Scheme Name | C13: Sub-fund Name | D13: Classification of Sub-fund as per the SFDR | E13: Legal Entity Identifier (LEI) of Sub-fund | F13: Country of Domicile | G13: Total AUM of the Sub-fund (in Euro) | H13: Link to SFDR Website Disclosures
A14: 4
A15: 5
A16: 6
A17: 7
A18: 8
A19: 9
A20: 10
A21: 11
A22: 12
A23: 13
A24: 14
A25: 15
A26: 16
A27: 17
A28: 18
A29: 19
A30: 20
A31: 21
A32: 22
A33: 23
A34: 24
A35: 25
A36: 26
A37: 27
A38: 28
A39: 29
A40: 30
A41: 31
A42: 32
A43: 33
A44: 34
A45: 35
A46: 36
A47: 37
A48: 38
A49: 39
A50: 40
A51: 41
A52: 42
A53: 43
A54: 44
A55: 45
A56: 46
A57: 47
A58: 48
A59: 49
A60: 50
A61: 51
A62: 52
A63: 53
A64: 54
A65: 55
A66: 56
A67: 57
A68: 58
A69: 59
A70: 60
A71: 61
A72: 62
A73: 63
A74: 64
A75: 65
A76: 66
A77: 67
A78: 68
A79: 69
A80: 70
A81: 71
A82: 72
A83: 73
A84: 74
A85: 75
A86: 76
A87: 77
A88: 78
A89: 79
A90: 80
A91: 81
A92: 82
A93: 83
A94: 84
A95: 85
A96: 86
A97: 87
A98: 88
A99: 89
A100: 90
A101: 91
A102: 92
A103: 93
A104: 94
A105: 95
A106: 96
A107: 97
A108: 98
A109: 99
A110: 100
A111: 101
A112: 102
A113: 103
A114: 104
A115: 105
A116: 106
A117: 107
A118: 108
A119: 109
A120: 110
A121: 111
A122: 112
A123: 113
A124: 114
A125: 115
A126: 116
A127: 117
A128: 118
A129: 119
A130: 120
A131: 121
A132: 122
A133: 123
A134: 124
A135: 125
A136: 126
A137: 127
A138: 128
A139: 129
A140: 130
A141: 131
A142: 132
A143: 133
A144: 134
A145: 135
A146: 136
A147: 137
A148: 138
A149: 139
A150: 140
A151: 141
A152: 142
A153: 143
A154: 144
A155: 145
A156: 146
A157: 147
A158: 148
A159: 149
A160: 150
A161: 151
A162: 152
A163: 153
A164: 154
A165: 155
A166: 156
A167: 157
A168: 158
A169: 159
A170: 160
A171: 161
A172: 162
A173: 163
A174: 164
A175: 165
A176: 166
A177: 167
A178: 168
A179: 169
A180: 170
A181: 171
A182: 172
A183: 173
A184: 174
A185: 175
A186: 176
A187: 177
A188: 178
A189: 179
A190: 180
A191: 181
A192: 182
A193: 183
A194: 184
A195: 185
A196: 186
A197: 187
A198: 188
A199: 189
A200: 190
A201: 191
A202: 192
A203: 193
A204: 194
A205: 195
... 33 more rows

Sheet VALIDATION SHEET
B4: VALIDATION SHEET
B6: Sheet Number: | E6: Sheet Title | N6: Description of Error
B8: Cover Sheet | L8: =+IF(G66>0,"ERROR","OK") -> ERROR | N8: =IF(L8="ERROR","CHECK THAT ENTRIES IN COVER SHEET ARE CORRECTLY INPUTTED.","") -> CHECK THAT ENTRIES IN COVER SHEET ARE CORRECTLY INPUTTED.
B10: Sheet 1 | C10: IFR 1 | E10: INPUT SHEET - MANDATORY | L10: =+IF(G73>0,"ERROR","OK") -> ERROR | N10: =IF(L10="ERROR","CHECK THAT ALL ENTRIES HAVE BEEN FILLED AND ARE CORRECTLY INPUTTED.","") -> CHECK THAT ALL ENTRIES HAVE BEEN FILLED AND ARE CORRECTLY INPUTTED.
N11: =IF(E69="ERROR","CHECK SHEET 1 - SECURED LIABILITIES","") -> 
B14: Sheet 2 | C14: IFR 2 | E14: INCOME STATEMENT | L14: =IF(AND(E75="OK"),"OK","ERROR") -> OK | N14: =IF(E75="ERROR","CHECK SHEET 2 - ITEMS IN THE INCOME STATEMENT.","") -> 
N15: =IF(E76="ERROR","CHECK SHEET 2 - SECTIONS 8 AND/ OR 19","") -> 
B17: Sheet 3 | C17: IFR 3 | E17: BALANCE SHEET | L17: =IF(E78="ok","OK","ERROR") -> OK | N17: =IF(L17="ERROR","CHECK Balance Sheet Entries","") -> 
B21: Sheet 4 | C21: IFR 4 | E21: TOTAL OWN FUNDS CALCULATION | L21: =IF(G80=0,"OK","ERROR") -> OK | N21: =IF(E80="ERROR","CHECK SHEET 4 - ELIGIBLE CAPITAL MUST BE AT LEAST EQUAL TO FIXED OVERHEAD REQUIREMENT","") -> 
N22: =IF(E81="ERROR","CHECK SHEET 4 - OWN FUNDS CANNOT BE LESS THAN INITIAL CAPITAL","") -> 
B24: Sheet 5 | C24: IFR 5 | E24: FIXED OVERHEAD REQUIREMENT | L24: =IF(G85>0,"ERROR","OK") -> ERROR | N24: =IF(E83="ERROR","CHECK SHEET 5 - MONTH REPRESENTATION - ITEM1","") -> CHECK SHEET 5 - MONTH REPRESENTATION - ITEM1
N25: =IF(E84="ERROR","CHECK SHEET 5 - TIED AGENTS QUESTION","") -> CHECK SHEET 5 - TIED AGENTS QUESTION
N26: =IF(E85="ERROR","CHECK SHEET 5 - TIED AGENTS AMOUNT","") -> CHECK SHEET 5 - TIED AGENTS AMOUNT
B27: Sheet 6 | C27: IFR 6 | E27: FINANCIAL RESOURCES REQUIREMENT | L27: =IF(G89>0,"ERROR","OK") -> OK | N27: =IF(E87="ERROR","KINDLY INPUT THE APPROPIATE CREDIT/ COUNTERPARTY RISK COMPONENT ","") -> 
N28: =IF(E88="ERROR","KINDLY INPUT THE POSITION RISK COMPONENT & COUNTERPARTY RISK COMPONENT FOR DERIVATIVE INSTRUMENTS","") -> 
B30: Sheet 7 | C30: IFR 7 | E30: REPRESENTATIONS | L30: =IF(G96>0,"ERROR","OK") -> ERROR | N30: =IF(E91="ERROR","ENSURE THAT QUESTIONS: 1, 2, 3, 7 & SIGNATURES OF DIRECTORS ARE COMPLETED", "") -> ENSURE THAT QUESTIONS: 1, 2, 3, 7 & SIGNATURES OF DIRECTORS ARE COMPLETED
N31: =IF(E92="ERROR","PLEASE ENSURE QUESTIONS 8 & 9 ARE COMPLETED WHEN THE FINANCIAL RETURN IS AN ANNUAL AUDITED FINANCIAL RETURN", "") -> 
N32: =IF(E93="ERROR","PLEASE ENSURE QUESTION 4 IS COMPLETED WHEN THE FINANCIAL RETURN IS AN ANNUAL AUDITED FINANCIAL RETURN", "") -> 
N33: =IF(E94="ERROR","PLEASE ENSURE THAT THE DETAILS REQUIRED IN QUESTION 6 ARE COMPLETED", "") -> PLEASE ENSURE THAT THE DETAILS REQUIRED IN QUESTION 6 ARE COMPLETED
N34: =IF(E95="ERROR","PLEASE ENSURE QUESTION 10 IS COMPLETED WHEN THE FINANCIAL RETURN IS AN ANNUAL AUDITED FINANCIAL RETURN", "") -> 
E35: NON-MALTA FUNDS | L35: =IF('Non-Malta Funds'!H6="","ERROR","OK") -> ERROR | N35: =IF(L35="ERROR","KINDLY COMPLETE THE NON-MALTA FUNDS SHEET", "") -> KINDLY COMPLETE THE NON-MALTA FUNDS SHEET
E38: ESG FUNDS | L38: =IF(M41=0,"OK","ERROR") -> ERROR | M38: =IF('ESG Funds'!E6="", 1, 0) -> 1 | N38: =IF('ESG Funds'!E6="", "PAIs AT ENTITY LEVEL IS BLANK", "") -> PAIs AT ENTITY LEVEL IS BLANK
M39: =IF('ESG Funds'!E8="",1, 0) -> 1 | N39: =IF('ESG Funds'!E8="","PAIs AT PRODUCT LEVEL IS BLANK", "") -> PAIs AT PRODUCT LEVEL IS BLANK
M40: =IF('ESG Funds'!E10="", 1, 0) -> 1 | N40: =IF('ESG Funds'!E10="", "ARTICLE SELECTION IS BLANK", "") -> ARTICLE SELECTION IS BLANK
M41: =SUM(M38:M40) -> 3
B42: Sheet 8 | E42: ANNUAL SUPERVISORY FEE CALCULATOR (AAFR only) | L42: =IF(SUM(F98:F99)>=1,"ERROR","OK") -> OK
B52: NAME OF SHEET | C52: VALIDATION NO: | E52: VALIDATION FORMULA | H52: DESCRIPTION
B54: Cover Sheet | C54: 1 | E54: =IF('COVER SHEET'!D93>0,"ERROR","OK") -> ERROR | F54: =IF(E54="OK",0,1) -> 1 | H54: Ensures all details in the cover sheet have been inputted.
E55: =IF(('COVER SHEET'!C22=""), "ERROR", "OK") -> ERROR | F55: =IF(E55="OK",0,1) -> 1 | H55: Ensures that LEI code is filled in
E56: =IF(('COVER SHEET'!C20=""), "ERROR", "OK") -> ERROR | F56: =IF(E56="OK",0,1) -> 1 | H56: Ensures that the LH Code is filled in
E57: =IF(('COVER SHEET'!C18=""), "ERROR", "OK") -> ERROR | F57: =IF(E57="OK",0,1) -> 1 | H57: Ensures that the name of the LH is filled in
E58: =IF(('COVER SHEET'!C26=""), "ERROR", "OK") -> ERROR | F58: =IF(E58="OK",0,1) -> 1 | H58: Ensures that the license type is filled in
E59: =IF(('COVER SHEET'!C28=""), "ERROR", "OK") -> ERROR | F59: =IF(E59="OK",0,1) -> 1 | H59: Ensures that the from date is filled in
E60: =IF(('COVER SHEET'!C29=""), "ERROR", "OK") -> ERROR | F60: 1 | H60: Ensures that the to date is filled in
E61: =IF(('COVER SHEET'!C31=""), "ERROR", "OK") -> ERROR | F61: 1 | H61: Ensures that the number of periods is filled in
E62: =IF(('COVER SHEET'!C34=""), "ERROR", "OK") -> ERROR | F62: 1 | H62: Ensures that the currency is filled in
E63: =IF(('COVER SHEET'!C36=""), "ERROR", "OK") -> ERROR | F63: 1 | H63: Ensures that the currency rate is filled in
E64: =IF(('COVER SHEET'!C38=""), "ERROR", "OK") -> ERROR | F64: 1 | H64: Ensures that the accountancy framework is filled in
E65: =IF(('COVER SHEET'!C40=""), "ERROR", "OK") -> ERROR | F65: 1 | H65: Ensures that the compliance officer name is filled in
E66: =IF(('COVER SHEET'!C42=""), "ERROR", "OK") -> ERROR | F66: 1 | G66: =SUM(F54:F66) -> 13 | H66: Ensures that the MLRO name is filled in
B68: SHEET 1 | C68: 1 | E68: =IF('Sheet 1'!D383>0,"ERROR",IF('Sheet 1'!D383<0,"ERROR","OK")) -> OK | F68: =IF(E68="OK",0,1) -> 0 | H68: The trial balance has a nil balance
C69: 2 | E69: =+IF('Sheet 1'!D392>'Sheet 1'!D390,"ERROR",IF('Sheet 1'!D397>'Sheet 1'!D395,"ERROR","OK")) -> OK | F69: =IF(E69="OK",0,1) -> 0 | H69: Ensures that secured liabilities values have been correctly entered
E70: =IF((OR('Sheet 1'!D422<>0, 'Sheet 1'!D425<>0, 'Sheet 1'!B432:D435<>0)), "OK", "ERROR") -> ERROR | F70: =IF(E70="OK",0,1) -> 1 | H70: Ensures that AUM/FUM is filled in
E71: =IF(('Sheet 1'!D1119=""), "ERROR", "OK") -> ERROR | F71: =IF(E71="OK",0,1) -> 1 | H71: Ensures that ESG funds under management is filled in
E72: =IF(AND('COVER SHEET'!C26<>"De-Minimis",'Sheet 1'!D1127=""), "ERROR", "OK") -> ERROR | F72: =IF(E72="OK",0,1) -> 1 | H72: Ensures that Cell 1127 on internal audit is completed
E73: =IF(AND('COVER SHEET'!C26<>"De-Minimis",'Sheet 1'!D1127<>"No",'Sheet 1'!D1131=""),"ERROR","OK") -> ERROR | F73: 1 | G73: =SUM(F68:F73) -> 4 | H73: Ensures that Cell 1131 on internal audit is completed
B75: SHEET 2 | C75: 1 | E75: =IF(ISBLANK('Sheet 2'!K114),"ERROR","OK") -> OK | F75: =IF((E75="OK"),0,1) -> 0 | H75: All entries in trial balance relating to P/L and statement of changes in equity have been entered
F76: 0 | G76: =SUM(F75:F76) -> 0 | H76: Where explanations are required to some items in P/L items, appropriate comments are inserted
B78: SHEET 3 | C78: 1 | E78: =IF('Sheet 3'!J28='Sheet 3'!J68,"OK","ERROR") -> OK | H78: Ensures that balance sheet agrees
B80: SHEET 4 | C80: 1 | E80: =IF('Sheet 4.1'!E32>='Sheet 5'!I47,"OK","ERROR") -> OK | F80: =IF(E80="OK",0,1) -> 0 | G80: =F80 -> 0 | H80: ELIGIBLE CAPITAL MUST BE AT LEAST EQUAL TO FIXED OVERHEAD REQUIREMENT
C81: 1 | E81: =IF('Sheet 4'!E5<'Sheet 6'!I16,"ERROR","OK") -> OK | F81: =IF(E81="OK",0,1) -> 0 | H81: OWN FUNDS CANNOT BE LESS THAN INITIAL CAPITAL
B83: SHEET 5 | C83: 1 | E83: =IF('Sheet 5'!H8>1,"OK","ERROR") -> ERROR | F83: =IF(E83="OK",0,1) -> 1 | H83: Ensures that all months are represented in the recent Audited Financial Statements
C84: 2 | E84: =IF('Sheet 5'!G42="","ERROR","OK") -> ERROR | F84: 1 | H84: Ensures that the licence holder has filled in the tied agents question?
C85: 3 | E85: =IF(OR('Sheet 5'!G42="NO",AND('Sheet 5'!G42="YES",'Sheet 5'!I42>0)),"OK","ERROR") -> ERROR | F85: 1 | G85: =SUM(F83:F85) -> 3 | H85: Ensures that the licence holder has included an amount if the tied agents question is answered yes
B87: SHEET 6 | C87: 1 | E87: OK | F87: 0 | H87: Ensures that the appropriate risk credit risk calculation is selected by the LH
C88: 2 | E88: OK | F88: 0 | H88: Ensures that if the licence holder holds positions in financial derivatives, the Derivatives Risk and counterparty credit risk are calculated and filled in
C89: 3 | E89: OK | F89: 0 | G89: =SUM(F87:F89) -> 0 | H89: Ensures that if the licence holder holds positions in commodities, the commodities instruments - risk component is calculated.
B91: SHEET 7 | C91: 1 | E91: =IF('Sheet 7'!K9="","ERROR",IF('Sheet 7'!K12="","ERROR",IF('Sheet 7'!K16="","ERROR",IF('Sheet 7'!K19="","ERROR",IF('Sheet 7'!I94="","ERROR",IF('Sheet 7'!I84="","ERROR","OK")))))) -> ERROR | F91: 1 | H91: Ensures appropriate details are filled in for questions: 1, 2, 3, 7 & signatures of directors are filled in properly
C92: 2 | E92: =IF(AND('COVER SHEET'!$B$15="",'Sheet 7'!K87="",'Sheet 7'!K90=""),"ERROR",IF(AND('COVER SHEET'!$B$15="Interim Financial Return",'Sheet 7'!K87="",'Sheet 7'!K90=""),"OK",IF(AND('COVER SHEET'!$B$15="Annual Financial Return",'Sheet 7'!K87="",'Sheet 7'!K90=""),"ERROR","OK"))) -> OK | F92: 0 | H92: Ensures appropriate details are filled in when the Financial Return is an AAFR - questions 8 & 9.
C93: 3 | E93: =IF('COVER SHEET'!$B$15="Interim Financial Return","OK",(IF(AND('Sheet 7'!K87="YES",'Sheet 7'!I33>0,'Sheet 7'!K33>0),"OK",IF('Sheet 7'!K87="NO","OK","ERROR")))) -> OK | F93: 0 | H93: Ensures that the appropriate details in question 4 are completed for an AAFR.
C94: 4 | E94: =IF(AND('Sheet 7'!C65=0,'Sheet 7'!F65=0),"ERROR","OK") -> ERROR | F94: 1 | H94: Ensures that the data required in question 6 is appropriately filled in.
C95: 5 | E95: =IF(OR('COVER SHEET'!B15="INTERIM FINANCIAL RETURN"),"OK",(IF(AND('COVER SHEET'!B15="ANNUAL FINANCIAL RETURN",'Sheet 7'!K87="NO",'Sheet 7'!K90="NO"),"OK",(IF(AND('COVER SHEET'!B15="AUDITED ANNUAL FINANCIAL RETURN",'Sheet 7'!K87="YES",'Sheet 7'!K90="YES",'Sheet 7'!J107>0,'Sheet 7'!I111>0,'Sheet 7'!C113>0),"OK","ERROR"))))) -> OK | F95: 0 | H95: Ensures that the dates in question 10 are completed.
C96: 6 | E96: =IF(OR('COVER SHEET'!$B$15="Interim Financial Return",'COVER SHEET'!$B$15="Annual Financial Return","OK"),(IF(AND('Sheet 7'!K87="YES",'Sheet 7'!I111>0,'Sheet 7'!C113>0),"OK",IF('Sheet 7'!K87="NO","OK","ERROR")))) -> OK | F96: 0 | G96: =SUM(F91:F95) -> 2 | H96: Ensures that the auditors' details are inputted in question 10.
B98: SHEET 8 | C98: 1 | E98: =IF('Sheet 8'!E16=('Sheet 2'!K59-'Sheet 2'!K56),"OK","ERROR") -> OK | F98: =IF(E98="OK",0,1) -> 0 | H98: Ensures that commission inputs in Sheet 8 match those in Sheet 1
C99: 2 | E99: =IF('Sheet 8'!E19='Sheet 1'!H48,"OK","ERROR") -> OK | F99: =IF(E99="OK",0,1) -> 0 | G99: =SUM(F98:F99) -> 0 | H99: Ensures that commission inputs in Sheet 8 match those in Sheet 1

Sheet LH Names & Codes (hidden)
A1: LH Name | B1: Code | C1: Licence Type | D1: LEI Code
A2: 24 Capital Management Limited | B2: 24CM | C2: AIFM | D2: 254900U468UFGFSSUU96
A3: Abalone Asset Management Limited | B3: ABAL | C3: AIFM+UCITS | D3: 213800RJPNK256NQ3V19
A4: Accendo Capital Management | B4: ACML14 | C4: AIFM | D4: 984500BC2E0X69ETCF12
A5: Accolade Investment Company Limited | B5: AICL | C5: AIFM | D5: 52990058ACRLCNZ2UY14
A6: Adventum International Limited | B6: ADVN | C6: AIFM | D6: 529900SSBWKEESF51507
A7: AKJ FMG Limited | B7: FMGM | C7: AIFM | D7: 213800NV7JCBS2TXRH63 | E7: lapsed
A8: Alanda Capital Management (Malta) Limited | B8: ALND | C8: AIFM | D8: 213800ABTM42ACZA6145 | E8: lapsed
A9: Altarius Asset Management Limited | B9: ALTA | C9: AIFM | D9: 5299000X84JRI8MS7D35
A10: AMAGIS Capital Management Limited | B10: AMAG | C10: AIFM+UCITS | D10: 213800QCBVP7O9DPFD93
A11: Andurand Capital Management Limited | B11: ANDU | C11: AIFM | D11: 549300C74U6R5H5T5081
A12: APartners Capital Investment Management Limited | B12: APIM | C12: AIFM | D12: 213800KL64XGYK86Z111
A13: AQA Capital (Malta) Limited | B13: AQAC | C13: AIFM+UCITS | D13: 2138001G8FUBS3YXAL75
A14: Audentia Capital Management Limited | B14: ACML | C14: AIFM | D14: 213800EMSWGQ5MV2P206
A15: AUM Asset Management Limited | B15: AUMA | C15: AIFM | D15: 213800CXW86T97PXU441
A16: Auriga Asset Management Limited | B16: AURI | C16: AIFM+UCITS | D16: 485100000JPOXDVQ3K89
A17: BOV Asset Management Limited | B17: VFML | C17: UCITS | D17: 2138001GKM54HSYO4Q41 | E17: lapsed
A18: Calamatta Cuschieri Investment Management Limited | B18: CCIM | C18: UCITS | D18: 391200VTSURYXBPRQ671
A19: Culross Global Investment Management Limited | B19: CULR | C19: AIFM | D19: 635400OXJBKRVFTBDP2
A20: Decent Investments Malta Limited | B20: DIM | C20: De-Minimis | D20: 984500FC1DCNDFUA2B14
A21: Diaman Partners Limited | B21: DMNP | C21: AIFM+UCITS | D21: 213800NR4ZRDSTIHKJ95
A22: Dolfin Fund Management Limited | B22: RMSM | C22: AIFM | D22: 549300BZ2608O037ZQ19
A23: Eisler Capital (MT) Limited | B23: ECM | C23: AIFM | D23: 549300LCIZGZQD7NG159
A24: EuroMena FMC Limited | B24: EURO | C24: De-Minimis | D24: 254900M5Z2MU1FXQT967
A25: Fair-Finance Asset Management Limited | B25: FFAM | C25: AIFM+UCITS | D25: 5299002J79R9TA0YUZ86
A26: Falcon Money Management Limited | B26: FALC | C26: AIFM | D26: 213800DWGDOMU52RW804
A27: FCS Asset Management Limited | B27: FCSL | C27: AIFM+UCITS | D27: 213800RZJX1BIQVYRX04
A28: Flexagon Capital Management Limited | B28: FLEX | C28: AIFM+UCITS | D28: 2138001XODNXDE3RSZ44
A29: Framont & Partners Management Limited | B29: FRMT | C29: AIFM+UCITS | D29: 213800KFDGNSMJPNR308
A30: Gamma Capital Markets Limited | B30: GMMA | C30: AIFM+UCITS | D30: 2138004R5UZCINK9C881
A31: Hanover Investors Management (Malta) Limited | B31: HIMM | C31: AIFM | D31: 213800N1V5TK2J65PN10
A32: Heartland Investment Management Limited | B32: HART | C32: AIFM | D32: 254900PMMTCJCDJ97613
A33: HSBC Global Asset Management (Malta) Limited | B33: HSBG | C33: UCITS | D33: 213800K5ZFNCMMGZHN18
A34: Mansard Capital Management Limited | B34: MANS | C34: De-Minimis | D34: 2138003SCWMLSJWAS783 | E34: lapsed
A35: Mediterrania Capital Partners Limited | B35: MEDC | C35: AIFM | D35: 254900XTV63V33AL0U72
A36: Mirabella Malta Limited | B36: MIRA | C36: AIFM | D36: 213800FL1BC6V4M64Z34
A37: Miria Asset Management Limited | B37: GWMA | C37: AIFM | D37: 213800ETITVASZIXR550
A38: Multi Partners Financial Services Limited | B38: MLTI | C38: AIFM | D38: 254900QHIBCDS1PAXA73
A39: Noster Capital Management Limited | B39: NCML4 | C39: AIFM | D39: 549300F17PZSLPEL0X79
A40: Pamplona PE Investments Malta Limited | B40: PAPP | C40: AIFM | D40: 213800OEX7X5TXPATR14
A41: Praude Asset Management Limited | B41: PAML | C41: AIFM+UCITS | D41: 213800XEUU66ORVOIE24
A42: Prestige Capital Management Limited | B42: PRES | C42: AIFM | D42: 213800MNQE78N1WVAA45
A43: PSG Fund Management (Malta) Limited | B43: PSGF | C43: AIFM+UCITS | D43: 213800CFUB5E8I27SF77 | E43: lapsed
A44: Q Fund Management Limited | B44: BSTN | C44: AIFM | D44: 2138005Z18R4WFYWGV56
A45: ReAPS Asset Management Limited | B45: RAPS | C45: UCITS | D45: 213800HL9D7GV5ZEAZ89
A46: Rigsave Capital Limited | B46: RIGS | C46: AIFM+UCITS | D46: 9845008G1EB2E4BC1E22
A47: SevenHills Investment Management Limited | B47: GWMG | C47: AIFM+UCITS | D47: 213800IUYUSQPISRH630
A48: SphereInvest Group Limited | B48: SPGL | C48: AIFM+UCITS | D48: 635400LYRQN3YJZNFV08
A49: Storton Fund Management Limited | B49: LFUN | C49: AIFM | D49: 984500999A540457B545
A50: Sun Hill Investment Management (Malta) Limited | B50: SHIM | C50: AIFM | D50: 213800Q1UNL4Q6E7VF92
A51: Terra Partners Asset Management Limited | B51: TRRA | C51: AIFM | D51: 529900LC51VCUHTEMG20
A52: Timberland Fund Management Limited | B52: TMBR | C52: AIFM | D52: 894500EGKKNXJOMX6995

Sheet Applicable Percentages (hidden)
A1: GrandFathering Instruments | C1: 464(5)
A2: 2013 | B2: 0.9
A3: =A2+1 -> 2014 | B3: =B2-10% -> 0.8
A4: =A3+1 -> 2015 | B4: =B3-10% -> 0.7
A5: 2016 | B5: 0.6
A6: 2017 | B6: 0.5
A7: 2018 | B7: 0.4
A8: 2019 | B8: 0.3
A9: 2020 | B9: 0.2
A10: 2021 | B10: 0.1
E11: 100 | F11: =IF((E11+E12-E13)>0,C1,C14) -> 459(3)
E12: 2000
E13: 3000
A14: Capital instruments and items that do not qualify as minority interests | C14: 459(3)
A15: 2013 | B15: 1
A16: =A15+1 -> 2014 | B16: 0.8
A17: =A16+1 -> 2015 | B17: 0.6
A18: =A17+1 -> 2016 | B18: 0.4 | G18: 1
A19: =A18+1 -> 2017 | B19: 0.2 | G19: 2
G20: 3
G21: 4
A22: Transitional recognition in consolidated own funds of minority interests | C22: 460(2) | G22: 5
A23: 2013 | B23: 0
A24: 2014 | B24: 0.2
A25: 2015 | B25: 0.4
A26: 2016 | B26: 0.6
A27: 2017 | B27: 0.8
A30: Unrealised Gains and Losses
B31: Gains (468) | C31: Losses (467)
A32: 2013 | B32: 0 | C32: 1
A33: 2014 | B33: 1 | C33: 1
A34: 2015 | B34: 0.6 | C34: 1
A35: 2016 | B35: 0.4 | C35: 1
A36: 2017 | B36: 0.2 | C36: 1
A38: Article 458 of CRR
A39: 2013 | B39: 1
A40: 2014 | B40: 1
A41: 2015 | B41: 1
A42: 2016 | B42: 1
A43: 2017 | B43: 1
